Workbook

Sheet Captain
A1: Captian | B1: Ship | C1: Class | D1: Units | H1: Enter "Convoy" for campaign battles
A2: Andy Terpstra | B2: Kongo | C2: 4 | D2: 4.5
A3: Bob Hoernemann | B3: Kongo | C3: 4 | D3: 4.5
A4: Brandon Smith | B4: Caio Duilio | C4: 4 | D4: 4.5
A5: Brian Lamb | B5: Lutzow | C5: 3 | D5: 3.5
A6: Carl Bitondo | B6: Deutschland | C6: 3 | D6: 3.5
A7: Carl Camurati | B7: Nelson | C7: 6 | D7: 6
A8: Charley Stephens | B8: Seydlitz | C8: 4 | D8: 4.5
A9: Chris Pearce | B9: Seydlitz | C9: 4 | D9: 4.5
A10: Craig Singer | B10: Nagato | C10: 6 | D10: 6
A11: Eric Bitondo | B11: Deutschland | C11: 3 | D11: 3.5
A12: Gerald Roberts | B12: Kongo | C12: 4 | D12: 4.5
A13: Jeff Lide | B13: Rodney | C13: 6 | D13: 6
A14: Kas Gaigalas | B14: Washington | C14: 6 | D14: 6
A15: Ken Arena | B15: Iron Duke | C15: 5 | D15: 5
A16: Kevin Plumer | B16: Courbet | C16: 4 | D16: 4.5
A17: Lee McKinzie | B17: North Carolina | C17: 6 | D17: 6
A18: Lou Meszaros | B18: Courbet | C18: 4 | D18: 4.5
A19: Mark Lide | B19: Nagato | C19: 6 | D19: 6
A20: Marty Hayes | B20: South Carolina | C20: 4 | D20: 4
A21: Nathan Graham | B21: West Virginia | C21: 5 | D21: 5.5
A22: Philip Pace | B22: Gearing | C22: 1 | D22: 1.5
A23: Randy Stiponovich | B23: Glorie | C23: 2 | D23: 2.5
A24: Richard Whitsell | B24: Jamaica | C24: 2 | D24: 2.5
A25: Robert Arena | B25: Arizona | C25: 5 | D25: 5.5
A26: Robert Stalnaker | B26: Revenge | C26: 5 | D26: 5.5
A27: Steve Andrews | B27: Courbet | C27: 4 | D27: 4.5
A28: Thomas Tanner | B28: Ostfriesland | C28: 4 | D28: 4.5
A29: Tom Palmer | B29: Warspite | C29: 5 | D29: 5.5
A30: Tyler Helland | B30: Nagato | C30: 6 | D30: 6
A31: William Tustin | B31: Jean Bart | C31: 6 | D31: 6.5
A32: David Haynes | B32: Kongo | C32: 4 | D32: 4.5
A33: Sydnee McKinzie | B33: Iron Duke | C33: 5 | D33: 5
A34: Isaac McKinzie | B34: Radetzky | C34: 3 | D34: 3.5
A35: John Jones | B35: Gearing | C35: 1 | D35: 1.5
A36: Mark Kuntz | B36: Nassau | C36: 4 | D36: 4
A37: Cameron Hunt | B37: Convoy | C37: 0 | D37: 0
B38: Des Moines | C38: 3 | D38: 3.5
B39: Suffren | C39: 3 | D39: 3
B40: Baden | C40: 5 | D40: 5.5
B41: Shimakaze | C41: 1 | D41: 1.5
B42: Torville | C42: 3 | D42: 3
B43: Luigi Cardona | C43: 2 | D43: 2
B44: Connecticut | C44: 3 | D44: 3.5
B45: Duca | C45: 2 | D45: 2.5
B46: Agano | C46: 2 | D46: 2.5

Sheet Nats Fri Coub v A&T
I1: Winner: | J1: =IF(K2>K3, B2, IF(K3>K2, B3, "Tie")) -> Allied | L1: Battle Type | M1: Battle Location and Month (i.e. MD May) | N1: Nats | S1: Fleet
A2: Fleet 1 : | B2: Allied | D2: Fleet Units: | E2: 13.5 | F2: Fleet Weight: | G2: 24 | H2: Fleet Battle Damage: | I2: 2370 | J2: Fleet Score: | K2: 6930 | M2: Battle Day | N2: Fri | S2: Mini-Fleet
A3: Fleet 2 : | B3: Axis | D3: Fleet Units: | E3: 15 | F3: Fleet Weight: | G3: 26 | H3: Fleet Battle Damage: | I3: 6930 | J3: Fleet Score: | K3: 2370 | M3: Battle Number | N3: Coub v A&T | S3: Individual
A4: Captian | B4: Ship | C4: Fleet | D4: Class | E4: Units | F4: Above | G4: On | H4: Below | I4: Sinks | J4: Participate all Sorties | K4: Penalties Points | L4: 2nd Sortie Sink | M4: Damage Points | N4: Scored By | O4: Notes | P4: Weight Factor | Q4: Weight Points | R4: Captian | S4: Captain Points | T4: Indiv Points
A5: Lou Meszaros | B5: Courbet | C5: Allied | D5: 4 | E5: 4.5 | F5: 25 | G5: 4 | H5: 3 | I5: 0 | J5: 1 | K5: 0 | L5: 0 | M5: 420 | N5: Tom | O5: None,None,None | P5: 8 | Q5: 2310 | R5: Lou Meszaros | S5: 2310 | T5: 1520
A6: Steve Andrews | B6: Courbet | C6: Allied | D6: 4 | E6: 4.5 | F6: 21 | G6: 7 | H6: 7 | I6: 0 | J6: 1 | K6: 0 | L6: 0 | M6: 560 | N6: Tom | O6: None,None,None | P6: 8 | Q6: 2310 | R6: Steve Andrews | S6: 2310 | T6: 1520
A7: Kevin Plumer | B7: Courbet | C7: Allied | D7: 4 | E7: 4.5 | F7: 41 | G7: 4 | H7: 30 | I7: 0 | J7: 1 | K7: 0 | L7: 0 | M7: 1390 | N7: Rob | O7: None,None,None | P7: 8 | Q7: 2310 | R7: Kevin Plumer | S7: 2310 | T7: 1520
A8: Ken Arena | B8: Iron Duke | C8: Axis | D8: 5 | E8: 5 | F8: 57 | G8: 7 | H8: 23 | I8: 0 | J8: 1 | K8: 0 | L8: 0 | M8: 1400 | N8: Steve | O8: None,None,None | P8: 9 | Q8: 820.3846154 | R8: Ken Arena | S8: 820.3846154 | T8: 0
A9: Robert Arena | B9: Arizona | C9: Axis | D9: 5 | E9: 5.5 | F9: 115 | G9: 8 | H9: 55 | I9: 1 | J9: 1 | K9: 0 | L9: 1 | M9: 3860 | N9: Kevin | O9: None,None,None | P9: 9 | Q9: 820.3846154 | R9: Robert Arena | S9: 620.3846154 | T9: 0
A10: Thomas Tanner | B10: Ostfriesland | C10: Axis | D10: 4 | E10: 4.5 | F10: 39 | G10: 4 | H10: 40 | I10: 0 | J10: 1 | K10: 0 | L10: 0 | M10: 1670 | N10: Kevin | O10: None,None,None | P10: 8 | Q10: 729.2307692 | R10: Thomas Tanner | S10: 729.2307692 | T10: 0

Sheet Nats Fri Nagatos
I1: Winner: | J1: =IF(K2>K3, B2, IF(K3>K2, B3, "Tie")) -> Mark | L1: Battle Type | M1: Battle Location and Month (i.e. MD May) | N1: Nats | S1: Fleet
A2: Fleet 1 : | B2: Tyler | D2: Fleet Units: | E2: 6 | F2: Fleet Weight: | G2: 10 | H2: Fleet Battle Damage: | I2: 1150 | J2: Fleet Score: | K2: 920 | M2: Battle Day | N2: Fri | S2: Mini-Fleet
A3: Fleet 2 : | B3: Mark | D3: Fleet Units: | E3: 6 | F3: Fleet Weight: | G3: 10 | H3: Fleet Battle Damage: | I3: 920 | J3: Fleet Score: | K3: 1150 | M3: Battle Number | N3: Nagatos | S3: Individual
A4: Captian | B4: Ship | C4: Fleet | D4: Class | E4: Units | F4: Above | G4: On | H4: Below | I4: Sinks | J4: Participate all Sorties | K4: Penalties Points | L4: 2nd Sortie Sink | M4: Damage Points | N4: Scored By | O4: Notes | P4: Weight Factor | Q4: Weight Points | R4: Captian | S4: Captain Points | T4: Indiv Points
A5: Mark Lide | B5: Nagato | C5: Mark | D5: 6 | E5: 6 | F5: 31 | G5: 2 | H5: 19 | I5: 0 | J5: 1 | K5: 0 | L5: 0 | M5: 920 | N5: Tyler | O5: None,None,None | P5: 10 | Q5: 1150 | R5: Mark Lide | S5: 1150 | T5: 230
A6: Tyler Helland | B6: Nagato | C6: Tyler | D6: 6 | E6: 6 | F6: 32 | G6: 13 | H6: 19 | I6: 0 | J6: 1 | K6: 0 | L6: 0 | M6: 1150 | N6: Mark | O6: None,None,None | P6: 10 | Q6: 920 | R6: Tyler Helland | S6: 920 | T6: 0

Sheet Nats Fri K v S rd2
I1: Winner: | J1: =IF(K2>K3, B2, IF(K3>K2, B3, "Tie")) -> Kevin | L1: Battle Type | M1: Battle Location and Month (i.e. MD May) | N1: Nats | S1: Fleet
A2: Fleet 1 : | B2: Kevin | D2: Fleet Units: | E2: 4.5 | F2: Fleet Weight: | G2: 8 | H2: Fleet Battle Damage: | I2: 1270 | J2: Fleet Score: | K2: 2330 | M2: Battle Day | N2: Fri | S2: Mini-Fleet
A3: Fleet 2 : | B3: Steve | D3: Fleet Units: | E3: 4.5 | F3: Fleet Weight: | G3: 8 | H3: Fleet Battle Damage: | I3: 2330 | J3: Fleet Score: | K3: 1270 | M3: Battle Number | N3: K v S rd2 | S3: Individual
A4: Captian | B4: Ship | C4: Fleet | D4: Class | E4: Units | F4: Above | G4: On | H4: Below | I4: Sinks | J4: Participate all Sorties | K4: Penalties Points | L4: 2nd Sortie Sink | M4: Damage Points | N4: Scored By | O4: Notes | P4: Weight Factor | Q4: Weight Points | R4: Captian | S4: Captain Points | T4: Indiv Points
A5: Steve Andrews | B5: Courbet | C5: Steve | D5: 4 | E5: 4.5 | F5: 37 | G5: 10 | H5: 32 | I5: 1 | J5: 1 | K5: 0 | L5: 1 | M5: 2330 | N5: Kevin | O5: None,None,None | P5: 8 | Q5: 1270 | R5: Steve Andrews | S5: 1070
A6: Kevin Plumer | B6: Courbet | C6: Kevin | D6: 4 | E6: 4.5 | F6: 24 | G6: 2 | H6: 33 | I6: 0 | J6: 1 | K6: 0 | L6: 0 | M6: 1270 | N6: Steve | O6: None,None,None | P6: 8 | Q6: 2330 | R6: Kevin Plumer | S6: 2330

Sheet Nats Fri Syd v Is
I1: Winner: | J1: =IF(K2>K3, B2, IF(K3>K2, B3, "Tie")) -> Allied | L1: Battle Type | M1: Battle Location and Month (i.e. MD May) | N1: Nats | S1: Fleet
A2: Fleet 1 : | B2: Allied | D2: Fleet Units: | E2: 3.5 | F2: Fleet Weight: | G2: 7 | H2: Fleet Battle Damage: | I2: 320 | J2: Fleet Score: | K2: 340 | M2: Battle Day | N2: Fri | S2: Mini-Fleet
A3: Fleet 2 : | B3: Axis | D3: Fleet Units: | E3: 3.5 | F3: Fleet Weight: | G3: 7 | H3: Fleet Battle Damage: | I3: 340 | J3: Fleet Score: | K3: 320 | M3: Battle Number | N3: Syd v Is | S3: Individual
A4: Captian | B4: Ship | C4: Fleet | D4: Class | E4: Units | F4: Above | G4: On | H4: Below | I4: Sinks | J4: Participate all Sorties | K4: Penalties Points | L4: 2nd Sortie Sink | M4: Damage Points | N4: Scored By | O4: Notes | P4: Weight Factor | Q4: Weight Points | R4: Captian | S4: Captain Points | T4: Indiv Points
A5: Sydnee McKinzie | B5: Radetzky | C5: Axis | D5: 3 | E5: 3.5 | F5: 13 | G5: 0 | H5: 7 | I5: 0 | J5: 1 | K5: 0 | L5: 0 | M5: 340 | N5: Charley | O5: None,None,None | P5: 7 | Q5: 320 | R5: Sydnee McKinzie | S5: 320
A6: Isaac McKinzie | B6: Radetzky | C6: Allied | D6: 3 | E6: 3.5 | F6: 5 | G6: 9 | H6: 3 | I6: 0 | J6: 1 | K6: 0 | L6: 0 | M6: 320 | N6: Lee | O6: None,None,None | P6: 7 | Q6: 340 | R6: Isaac McKinzie | S6: 340

Sheet Nats Fri 1
I1: Winner: | J1: =IF(K2>K3, B2, IF(K3>K2, B3, "Tie")) -> Axis | L1: Battle Type | M1: Battle Location and Month (i.e. MD May) | N1: Nats | S1: Fleet
A2: Fleet 1 : | B2: Allied | D2: Fleet Units: | E2: 76 | F2: Fleet Weight: | G2: 135 | H2: Fleet Battle Damage: | I2: 20800 | J2: Fleet Score: | K2: 14840.00098 | M2: Battle Day | N2: Fri | S2: Mini-Fleet
A3: Fleet 2 : | B3: Axis | D3: Fleet Units: | E3: 60.5 | F3: Fleet Weight: | G3: 104 | H3: Fleet Battle Damage: | I3: 15040 | J3: Fleet Score: | K3: 20800 | M3: Battle Number | N3: 1 | S3: Individual
A4: Captian | B4: Ship | C4: Fleet | D4: Class | E4: Units | F4: Above | G4: On | H4: Below | I4: Sinks | J4: Participate all Sorties | K4: Penalties Points | L4: 2nd Sortie Sink | M4: Damage Points | N4: Scored By | O4: Notes | P4: Weight Factor | Q4: Weight Points | R4: Captian | S4: Captain Points | T4: Indiv Points
A5: William Tustin | B5: Lutzow | C5: Allied | D5: 3 | E5: 3.5 | F5: 6 | G5: 0 | H5: 0 | I5: 0 | J5: 1 | K5: 0 | L5: 0 | M5: 60 | N5: Brian | O5: None,None,None | P5: 7 | Q5: 779.8518519 | R5: William Tustin | S5: 779.8518519
A6: Kevin Plumer | B6: Courbet | C6: Allied | D6: 4 | E6: 4.5 | F6: 9 | G6: 8 | H6: 16 | I6: 1 | J6: 0 | K6: 0 | L6: 0 | M6: 1530 | N6: Mark | O6: None,None,None | P6: 4 | Q6: 445.6296296 | R6: Kevin Plumer | S6: 445.6296296
A7: Steve Andrews | B7: Courbet | C7: Allied | D7: 4 | E7: 4.5 | F7: 14 | G7: 2 | H7: 4 | I7: 0 | J7: 1 | K7: 0 | L7: 0 | M7: 300 | N7: Mark | O7: None,None,None | P7: 8 | Q7: 891.2592593 | R7: Steve Andrews | S7: 891.2592593
A8: Kas Gaigalas | B8: Washington | C8: Allied | D8: 6 | E8: 6 | F8: 36 | G8: 10 | H8: 20 | I8: 0 | J8: 1 | K8: 0 | L8: 0 | M8: 1160 | N8: Craig | O8: None,None,None | P8: 10 | Q8: 1114.074074 | R8: Kas Gaigalas | S8: 1114.074074
A9: John Jones | B9: Gearing | C9: Allied | D9: 1 | E9: 1.5 | F9: 4 | G9: 0 | H9: 1 | I9: 0 | J9: 1 | K9: 0 | L9: 0 | M9: 70 | N9: Tom | O9: None,None,None | P9: 4 | Q9: 445.6296296 | R9: John Jones | S9: 445.6296296
A10: Chris Pearce | B10: Suffren | C10: Allied | D10: 3 | E10: 3 | F10: 11 | G10: 8 | H10: 2 | I10: 1 | J10: 1 | K10: 0 | L10: 1 | M10: 1030 | N10: Brian | O10: None,None,None | P10: 7 | Q10: 779.8518519 | R10: Chris Pearce | S10: 579.8518519
A11: Lou Meszaros | B11: Courbet | C11: Allied | D11: 4 | E11: 4.5 | F11: 5 | G11: 1 | H11: 8 | I11: 1 | J11: 1 | K11: 0 | L11: 1 | M11: 1110 | N11: Brandon | O11: None,None,None | P11: 8 | Q11: 891.2592593 | R11: Lou Meszaros | S11: 691.2592593
A12: Richard Whitsell | B12: Jamaica | C12: Allied | D12: 2 | E12: 2.5 | F12: 7 | G12: 2 | H12: 2 | I12: 1 | J12: 1 | K12: 0 | L12: 1 | M12: 770 | N12: Randy | O12: None,None,None | P12: 6 | Q12: 668.4444444 | R12: Richard Whitsell | S12: 468.4444444
A13: Carl Camurati | B13: Nelson | C13: Allied | D13: 6 | E13: 6 | F13: 241 | G13: 43 | H13: 87 | I13: 0 | J13: 1 | K13: 200 | L13: 0 | M13: 5880 | N13: Bob | O13: Ram Below Charley,None,None | P13: 10 | Q13: 914.0740741 | R13: Carl Camurati | S13: 914.0740741
A14: Tom Palmer | B14: Warspite | C14: Allied | D14: 5 | E14: 5.5 | F14: 53 | G14: 8 | H14: 32 | I14: 0 | J14: 1 | K14: 0 | L14: 0 | M14: 1650 | N14: Andy | O14: None,None,None | P14: 9 | Q14: 1002.666667 | R14: Tom Palmer | S14: 1002.666667
A15: Nathan Graham | B15: Gearing | C15: Allied | D15: 1 | E15: 1.5 | F15: 0 | G15: 0 | H15: 0 | I15: 0 | J15: 1 | K15: 0 | L15: 0 | M15: 0 | N15: Charley | O15: None,None,None | P15: 4 | Q15: 445.6296296 | R15: Nathan Graham | S15: 445.6296296
A16: Jeff Lide | B16: Rodney | C16: Allied | D16: 6 | E16: 6 | F16: 129 | G16: 12 | H16: 41 | I16: 1 | J16: 1 | K16: 0 | L16: 1 | M16: 3760 | N16: Tyler | O16: None,None,None | P16: 10 | Q16: 1114.074074 | R16: Jeff Lide | S16: 914.0740741
A17: Ken Arena | B17: Iron Duke | C17: Allied | D17: 5 | E17: 5 | F17: 19 | G17: 2 | H17: 11 | I17: 0 | J17: 1 | K17: 0 | L17: 0 | M17: 560 | N17: Tom | O17: None,None,None | P17: 9 | Q17: 1002.666667 | R17: Ken Arena | S17: 1002.666667
A18: Philip Pace | B18: Gearing | C18: Allied | D18: 1 | E18: 1.5 | F18: 3 | G18: 0 | H18: 0 | I18: 0 | J18: 1 | K18: 0 | L18: 0 | M18: 30 | N18: Randy | O18: None,None,None | P18: 4 | Q18: 445.6296296 | R18: Philip Pace | S18: 445.6296296
A19: Robert Arena | B19: Arizona | C19: Allied | D19: 5 | E19: 5.5 | F19: 27 | G19: 4 | H19: 18 | I19: 0 | J19: 1 | K19: 0 | L19: 0 | M19: 890 | N19: Charley | O19: None,None,None | P19: 9 | Q19: 1002.666667 | R19: Robert Arena | S19: 1002.666667
A20: Isaac McKinzie | B20: Radetzky | C20: Allied | D20: 3 | E20: 3.5 | F20: 21 | G20: 14 | H20: 6 | I20: 0 | J20: 1 | K20: 0 | L20: 0 | M20: 670 | N20: Sydnee | O20: None,None,None | P20: 7 | Q20: 779.8518519 | R20: Isaac McKinzie | S20: 779.8518519
A21: Lee McKinzie | B21: North Carolina | C21: Allied | D21: 6 | E21: 6 | F21: 16 | G21: 0 | H21: 5 | I21: 0 | J21: 1 | K21: 0 | L21: 0 | M21: 310 | N21: Sydnee | O21: None,None,None | P21: 10 | Q21: 1114.074074 | R21: Lee McKinzie | S21: 1114.074074
A22: Robert Stalnaker | B22: Revenge | C22: Allied | D22: 5 | E22: 5.5 | F22: 4 | G22: 1 | H22: 2 | I22: 1 | J22: 1 | K22: 0 | L22: 1 | M22: 1020 | N22: Mark | O22: None,None,None | P22: 9 | Q22: 1002.666667 | R22: Robert Stalnaker | S22: 802.6666667
A23: Sydnee McKinzie | B23: Radetzky | C23: Axis | D23: 3 | E23: 3.5 | F23: 20 | G23: 16 | H23: 21 | I23: 0 | J23: 1 | K23: 0 | L23: 0 | M23: 1150 | N23: Ken | O23: None,None,None | P23: 7 | Q23: 1400 | R23: Sydnee McKinzie | S23: 1400
A24: Brian Lamb | B24: Lutzow | C24: Axis | D24: 3 | E24: 3.5 | F24: 6 | G24: 2 | H24: 2 | I24: 0 | J24: 1 | K24: 0 | L24: 0 | M24: 160 | N24: Chris | O24: None,None,None | P24: 7 | Q24: 1400 | R24: Brian Lamb | S24: 1400
A25: Randy Stiponovich | B25: Luigi Cardona | C25: Axis | D25: 2 | E25: 2 | F25: 2 | G25: 0 | H25: 2 | I25: 0 | J25: 1 | K25: 0 | L25: 0 | M25: 80 | N25: Rick | O25: None,None,None | P25: 6 | Q25: 1200 | R25: Randy Stiponovich | S25: 1200
A26: Craig Singer | B26: Nagato | C26: Axis | D26: 6 | E26: 6 | F26: 65 | G26: 4 | H26: 8 | I26: 0 | J26: 1 | K26: 0 | L26: 0 | M26: 970 | N26: Kas | O26: None,None,None | P26: 10 | Q26: 2000 | R26: Craig Singer | S26: 2000
A27: Brandon Smith | B27: Glorie | C27: Axis | D27: 2 | E27: 2.5 | F27: 6 | G27: 2 | H27: 3 | I27: 0 | J27: 1 | K27: 0 | L27: 0 | M27: 190 | N27: Lou | O27: None,None,None | P27: 6 | Q27: 1200 | R27: Brandon Smith | S27: 1200
A28: Charley Stephens | B28: Seydlitz | C28: Axis | D28: 4 | E28: 4.5 | F28: 10 | G28: 5 | H28: 16 | I28: 0 | J28: 1 | K28: 0 | L28: 0 | M28: 680 | N28: Rob | O28: None,None,None | P28: 8 | Q28: 1600 | R28: Charley Stephens | S28: 1600
A29: Mark Lide | B29: Nagato | C29: Axis | D29: 6 | E29: 6 | F29: 29 | G29: 3 | H29: 15 | I29: 0 | J29: 1 | K29: 0 | L29: 0 | M29: 800 | N29: Ron | O29: None,None,None | P29: 10 | Q29: 2000 | R29: Mark Lide | S29: 2000
A30: Andy Terpstra | B30: Kongo | C30: Axis | D30: 4 | E30: 4.5 | F30: 47 | G30: 1 | H30: 25 | I30: 0 | J30: 1 | K30: 0 | L30: 0 | M30: 1240 | N30: Tom | O30: None,None,None | P30: 8 | Q30: 1600 | R30: Andy Terpstra | S30: 1600
A31: Bob Hoernemann | B31: Kongo | C31: Axis | D31: 4 | E31: 4.5 | F31: 33 | G31: 2 | H31: 20 | I31: 0 | J31: 1 | K31: 0 | L31: 0 | M31: 970 | N31: Tom | O31: None,None,None | P31: 8 | Q31: 1600 | R31: Bob Hoernemann | S31: 1600
A32: Gerald Roberts | B32: Kongo | C32: Axis | D32: 4 | E32: 4.5 | F32: 56 | G32: 8 | H32: 23 | I32: 0 | J32: 1 | K32: 0 | L32: 0 | M32: 1410 | N32: Lou | O32: None,None,None | P32: 8 | Q32: 1600 | R32: Gerald Roberts | S32: 1600
A33: David Haynes | B33: Kongo | C33: Axis | D33: 4 | E33: 4.5 | F33: 10 | G33: 0 | H33: 3 | I33: 1 | J33: 0 | K33: 0 | L33: 0 | M33: 990 | N33: Rick | O33: None,None,None | P33: 4 | Q33: 800 | R33: David Haynes | S33: 800
A34: Tyler Helland | B34: Nagato | C34: Axis | D34: 6 | E34: 6 | F34: 94 | G34: 17 | H34: 34 | I34: 0 | J34: 1 | K34: 0 | L34: 0 | M34: 2300 | N34: Nate | O34: None,None,None | P34: 10 | Q34: 2000 | R34: Tyler Helland | S34: 2000
A35: Thomas Tanner | B35: Ostfriesland | C35: Axis | D35: 4 | E35: 4.5 | F35: 56 | G35: 6 | H35: 46 | I35: 0 | J35: 1 | K35: 0 | L35: 0 | M35: 2060 | N35: Kevin | O35: None,None,None | P35: 8 | Q35: 1600 | R35: Thomas Tanner | S35: 1600
A36: Mark Kuntz | B36: Nassau | C36: Axis | D36: 4 | E36: 4 | F36: 52 | G36: 15 | H36: 14 | I36: 1 | J36: 0 | K36: 0 | L36: 0 | M36: 2040 | N36: Kevin | O36: None,None,None | P36: 4 | Q36: 800 | R36: Mark Kuntz | S36: 800

Sheet Nats Thur Campaign
I1: Winner: | J1: =IF(K2>K3, B2, IF(K3>K2, B3, "Tie")) -> Allied | M1: Battle Location and Month (i.e. MD May) | N1: Nats | P1: Convoy Runs | W1: Sinks | AC1: Convoy Friendly Ram | AJ1: Ram Penalties
A2: Fleet 1 : | B2: Allied | F2: Fleet Points: | G2: =B15 -> 15700 | H2: Fleet Penalties: | I2: =B16 -> 0 | J2: Fleet Score: | K2: =B17 -> 15700 | M2: Battle Day | N2: Thur | P2: Captain | Q2: Fleet | R2: Ship | S2: Ship Length | T2: Number of Runs | U2: Points | W2: Captain | X2: Fleet | Y2: Ship | Z2: Class | AA2: Sink Points | AC2: Ramming Captain | AD2: Fleet | AE2: Convoy Ship | AF2: Convoy Captain | AG2: Ship Length | AH2: Points | AJ2: Ramming Captain | AK2: Fleet | AL2: Ram Type | AM2: Rammed Captain | AN2: Rammed Ship | AO2: Rammed Ship Class | AP2: Ram Sink | AQ2: Points
A3: Fleet 2 : | B3: Axis | F3: Fleet Points: | G3: =C15 -> 5950 | H3: Fleet Penalties: | I3: =C16 -> 200 | J3: Fleet Score: | K3: =C17 -> 5750 | P3: Tom Palmer | Q3: Allied | R3: Saratoga | S3: 74 | T3: 4 | U3: 3400 | W3: Lee McKinzie | X3: Allied | Y3: North Carolina | Z3: 6 | AA3: 1000 | AJ3: Andy Terpstra | AK3: Axis | AL3: Below | AM3: Kevin Plumer | AN3: Lutzow | AO3: 3 | AP3: 0 | AQ3: 200
P4: Robert Stalnaker | Q4: Allied | R4: Red Oak | S4: 37 | T4: 3 | U4: 1650 | W4: Ken Arena | X4: Allied | Y4: Iron Duke | Z4: 5 | AA4: 900
A5: Fleet: | B5: =B2 -> Allied | C5: =B3 -> Axis | P5: Isaac McKinzie | Q5: Allied | R5: La Baguette | S5: 37 | T5: 3 | U5: 1650 | W5: Richard Whitsell | X5: Allied | Y5: Jamaica | Z5: 2 | AA5: 600
A6: Targets Remaining: | B6: 0 | C6: 0 | P6: Robert Stalnaker | Q6: Allied | R6: Patrick Henry | S6: 37 | T6: 7 | U6: 3850 | W6: Chris Pearce | X6: Allied | Y6: Suffren | Z6: 3 | AA6: 700
A7: Target Points: | B7: 0 | C7: 0 | P7: Marty Hayes | Q7: Allied | R7: LST 1 | S7: 27 | T7: 4 | U7: 1200 | W7: Thomas Tanner | X7: Axis | Y7: Ostfriesland | Z7: 4 | AA7: 800
A8: Convoy Run Points: | B8: 14900 | C8: 2750 | P8: Cameron Hunt | Q8: Allied | R8: LST 5 | S8: 27 | T8: 4 | U8: 1200
A9: Scuttled Convoy Points: | B9: 0 | C9: 0 | P9: Cameron Hunt | Q9: Allied | R9: LST 6 | S9: 27 | T9: 1 | U9: 300
A10: Sink Points: | B10: 800 | C10: 3200 | P10: Nathan Graham | Q10: Allied | R10: Mathers | S10: 50 | T10: 3 | U10: 1650
A11: Convoy Friendly Ram Points: | P11: David Haynes | Q11: Axis | R11: Mizuhu | S11: 50 | T11: 4 | U11: 2200
A12: Ram Penalty Points: | C12: 200 | P12: Mark Kuntz | Q12: Axis | R12: Hospital | S12: 50 | T12: 1 | U12: 550
A13: No Ship on Water Points: | B13: 0 | C13: 0
A14: Convoy Run Every 10 Min Points: | B14: 0 | C14: 0
A15: Total Points: | B15: =B7+B8+B9+B10+B11+B13+B14 -> 15700 | C15: =C7+C8+C9+C10+C11+C13+C14 -> 5950
A16: Total Penalties: | B16: =B12 -> 0 | C16: =C12 -> 200
A17: Fleet Score: | B17: =B15-B16 -> 15700 | C17: =C15-C16 -> 5750

Sheet Nats Thur 1
I1: Winner: | J1: =IF(K2>K3, B2, IF(K3>K2, B3, "Tie")) -> Allied | L1: Battle Type | M1: Battle Location and Month (i.e. MD May) | N1: Nats | S1: Fleet
A2: Fleet 1 : | B2: Allied | D2: Fleet Units: | E2: 72 | F2: Fleet Weight: | G2: 120 | H2: Fleet Battle Damage: | I2: 19590 | J2: Fleet Score: | K2: 22720.00195 | M2: Battle Day | N2: Thur | S2: Mini-Fleet
A3: Fleet 2 : | B3: Axis | D3: Fleet Units: | E3: 65 | F3: Fleet Weight: | G3: 108 | H3: Fleet Battle Damage: | I3: 22720 | J3: Fleet Score: | K3: 19390 | M3: Battle Number | N3: 1 | S3: Individual
A4: Captian | B4: Ship | C4: Fleet | D4: Class | E4: Units | F4: Above | G4: On | H4: Below | I4: Sinks | J4: Participate all Sorties | K4: Penalties Points | L4: 2nd Sortie Sink | M4: Damage Points | N4: Scored By | O4: Notes | P4: Weight Factor | Q4: Weight Points | R4: Captian | S4: Captain Points | T4: Indiv Points
A5: Craig Singer | B5: Nagato | C5: Axis | D5: 6 | E5: 6 | F5: 58 | G5: 10 | H5: 42 | I5: 1 | J5: 1 | K5: 0 | L5: 1 | M5: 3040 | N5: Kevin | O5: None,None,None | P5: 10 | Q5: 1813.888889 | R5: Craig Singer | S5: 1613.888889
A6: Mark Lide | B6: Nagato | C6: Axis | D6: 6 | E6: 6 | F6: 15 | G6: 4 | H6: 17 | I6: 0 | J6: 1 | K6: 0 | L6: 0 | M6: 740 | N6: Kevin | O6: None,None,None | P6: 10 | Q6: 1813.888889 | R6: Mark Lide | S6: 1813.888889
A7: David Haynes | B7: Kongo | C7: Axis | D7: 4 | E7: 4.5 | F7: 51 | G7: 10 | H7: 17 | I7: 1 | J7: 1 | K7: 0 | L7: 1 | M7: 2020 | N7: Kevin | O7: None,None,None | P7: 8 | Q7: 1451.111111 | R7: David Haynes | S7: 1251.111111
A8: Tyler Helland | B8: Nagato | C8: Axis | D8: 6 | E8: 6 | F8: 70 | G8: 19 | H8: 44 | I8: 0 | J8: 1 | K8: 0 | L8: 0 | M8: 2400 | N8: Rick | O8: None,None,None | P8: 10 | Q8: 1813.888889 | R8: Tyler Helland | S8: 1813.888889
A9: Richard Whitsell | B9: Jamaica | C9: Allied | D9: 2 | E9: 2.5 | F9: 12 | G9: 3 | H9: 1 | I9: 0 | J9: 1 | K9: 0 | L9: 0 | M9: 210 | N9: Tyler | O9: None,None,None | P9: 6 | Q9: 1136 | R9: Richard Whitsell | S9: 1136
A10: Marty Hayes | B10: South Carolina | C10: Allied | D10: 4 | E10: 4 | F10: 28 | G10: 4 | H10: 1 | I10: 1 | J10: 1 | K10: 0 | L10: 1 | M10: 1190 | N10: Tom | O10: None,None,None | P10: 8 | Q10: 1514.666667 | R10: Marty Hayes | S10: 1314.666667
A11: Kevin Plumer | B11: Courbet | C11: Allied | D11: 4 | E11: 4.5 | F11: 20 | G11: 9 | H11: 14 | I11: 1 | J11: 1 | K11: 0 | L11: 1 | M11: 1600 | N11: Brian | O11: None,None,None | P11: 8 | Q11: 1514.666667 | R11: Kevin Plumer | S11: 1314.666667
A12: Thomas Tanner | B12: Ostfriesland | C12: Axis | D12: 4 | E12: 4.5 | F12: 29 | G12: 7 | H12: 11 | I12: 1 | J12: 0 | K12: 0 | L12: 0 | M12: 1560 | N12: Ken | O12: None,None,None | P12: 4 | Q12: 725.5555556 | R12: Thomas Tanner | S12: 725.5555556
A13: Brian Lamb | B13: Lutzow | C13: Axis | D13: 3 | E13: 3.5 | F13: 23 | G13: 9 | H13: 12 | I13: 0 | J13: 1 | K13: 0 | L13: 0 | M13: 770 | N13: Chris | O13: None,None,None | P13: 7 | Q13: 1269.722222 | R13: Brian Lamb | S13: 1269.722222
A14: Randy Stiponovich | B14: Glorie | C14: Axis | D14: 2 | E14: 2.5 | F14: 23 | G14: 15 | H14: 15 | I14: 0 | J14: 1 | K14: 0 | L14: 0 | M14: 980 | N14: Tom | O14: None,None,None | P14: 6 | Q14: 1088.333333 | R14: Randy Stiponovich | S14: 1088.333333
A15: Charley Stephens | B15: Seydlitz | C15: Axis | D15: 4 | E15: 4.5 | F15: 18 | G15: 3 | H15: 4 | I15: 0 | J15: 1 | K15: 0 | L15: 0 | M15: 360 | N15: Rob | O15: None,None,None | P15: 8 | Q15: 1451.111111 | R15: Charley Stephens | S15: 1451.111111
A16: Bob Hoernemann | B16: Kongo | C16: Axis | D16: 4 | E16: 4.5 | F16: 48 | G16: 4 | H16: 38 | I16: 0 | J16: 1 | K16: 200 | L16: 0 | M16: 1700 | N16: Lou | O16: Ram Below Kevin,None,None | P16: 8 | Q16: 1251.111111 | R16: Bob Hoernemann | S16: 1251.111111
A17: Mark Kuntz | B17: Nassau | C17: Axis | D17: 4 | E17: 4 | F17: 2 | G17: 0 | H17: 4 | I17: 1 | J17: 0 | K17: 0 | L17: 0 | M17: 940 | N17: Isaac | O17: None,None,None | P17: 4 | Q17: 725.5555556 | R17: Mark Kuntz | S17: 725.5555556
A18: Gerald Roberts | B18: Kongo | C18: Axis | D18: 4 | E18: 4.5 | F18: 35 | G18: 6 | H18: 12 | I18: 0 | J18: 1 | K18: 0 | L18: 0 | M18: 830 | N18: John | O18: None,None,None | P18: 8 | Q18: 1451.111111 | R18: Gerald Roberts | S18: 1451.111111
A19: Sydnee McKinzie | B19: Baden | C19: Axis | D19: 5 | E19: 5.5 | F19: 57 | G19: 29 | H19: 87 | I19: 0 | J19: 1 | K19: 0 | L19: 0 | M19: 3760 | N19: Steve | O19: None,None,None | P19: 9 | Q19: 1632.5 | R19: Sydnee McKinzie | S19: 1632.5
A20: Andy Terpstra | B20: Kongo | C20: Axis | D20: 4 | E20: 4.5 | F20: 34 | G20: 2 | H20: 37 | I20: 0 | J20: 1 | K20: 0 | L20: 0 | M20: 1490 | N20: Jeff | O20: None,None,None | P20: 8 | Q20: 1451.111111 | R20: Andy Terpstra | S20: 1451.111111
A21: Brandon Smith | B21: Caio Duilio | C21: Axis | D21: 4 | E21: 4.5 | F21: 68 | G21: 7 | H21: 17 | I21: 1 | J21: 1 | K21: 0 | L21: 1 | M21: 2130 | N21: Lou | O21: None,None,None | P21: 8 | Q21: 1451.111111 | R21: Brandon Smith | S21: 1251.111111
A22: Chris Pearce | B22: Suffren | C22: Allied | D22: 3 | E22: 3 | F22: 4 | G22: 2 | H22: 0 | I22: 0 | J22: 1 | K22: 0 | L22: 0 | M22: 80 | N22: Brian | O22: None,None,None | P22: 7 | Q22: 1325.333333 | R22: Chris Pearce | S22: 1325.333333
A23: Ken Arena | B23: Iron Duke | C23: Allied | D23: 5 | E23: 5 | F23: 49 | G23: 8 | H23: 26 | I23: 1 | J23: 0 | K23: 0 | L23: 0 | M23: 2330 | N23: Tom | O23: None,None,None | P23: 4.5 | Q23: 852 | R23: Ken Arena | S23: 852
A24: John Jones | B24: Gearing | C24: Allied | D24: 1 | E24: 1.5 | F24: 2 | G24: 0 | H24: 0 | I24: 0 | J24: 1 | K24: 0 | L24: 0 | M24: 20 | N24: Tom | O24: None,None,None | P24: 4 | Q24: 757.3333333 | R24: John Jones | S24: 757.3333333
A25: Lou Meszaros | B25: Courbet | C25: Allied | D25: 4 | E25: 4.5 | F25: 17 | G25: 6 | H25: 21 | I25: 0 | J25: 1 | K25: 0 | L25: 0 | M25: 920 | N25: Brandon | O25: None,None,None | P25: 8 | Q25: 1514.666667 | R25: Lou Meszaros | S25: 1514.666667
A26: Steve Andrews | B26: Courbet | C26: Allied | D26: 4 | E26: 4.5 | F26: 4 | G26: 3 | H26: 3 | I26: 0 | J26: 1 | K26: 0 | L26: 0 | M26: 190 | N26: Brandon | O26: None,None,None | P26: 8 | Q26: 1514.666667 | R26: Steve Andrews | S26: 1514.666667
A27: Carl Camurati | B27: Nelson | C27: Allied | D27: 6 | E27: 6 | F27: 100 | G27: 6 | H27: 18 | I27: 0 | J27: 1 | K27: 0 | L27: 0 | M27: 1660 | N27: Mark | O27: None,None,None | P27: 10 | Q27: 1893.333333 | R27: Carl Camurati | S27: 1893.333333
A28: Tom Palmer | B28: Warspite | C28: Allied | D28: 5 | E28: 5.5 | F28: 9 | G28: 2 | H28: 3 | I28: 0 | J28: 1 | K28: 0 | L28: 0 | M28: 220 | N28: Randy | O28: None,None,None | P28: 9 | Q28: 1704 | R28: Tom Palmer | S28: 1704
A29: Robert Arena | B29: Arizona | C29: Allied | D29: 5 | E29: 5.5 | F29: 30 | G29: 3 | H29: 19 | I29: 0 | J29: 1 | K29: 0 | L29: 0 | M29: 930 | N29: Mark K | O29: None,None,None | P29: 9 | Q29: 1704 | R29: Robert Arena | S29: 1704
A30: Lee McKinzie | B30: North Carolina | C30: Allied | D30: 6 | E30: 6 | F30: 50 | G30: 28 | H30: 46 | I30: 1 | J30: 1 | K30: 0 | L30: 1 | M30: 3440 | N30: Sydnee | O30: None,None,None | P30: 10 | Q30: 1893.333333 | R30: Lee McKinzie | S30: 1693.333333
A31: William Tustin | B31: Jean Bart | C31: Allied | D31: 6 | E31: 6.5 | F31: 19 | G31: 8 | H31: 68 | I31: 1 | J31: 1 | K31: 0 | L31: 1 | M31: 3390 | N31: Charley | O31: None,None,None | P31: 10 | Q31: 1893.333333 | R31: William Tustin | S31: 1693.333333
A32: Robert Stalnaker | B32: Revenge | C32: Allied | D32: 5 | E32: 5.5 | F32: 3 | G32: 1 | H32: 8 | I32: 1 | J32: 0 | K32: 0 | L32: 0 | M32: 1190 | N32: Mark | O32: None,None,None | P32: 4.5 | Q32: 852 | R32: Robert Stalnaker | S32: 852
A33: Philip Pace | B33: Gearing | C33: Allied | D33: 1 | E33: 1.5 | F33: 4 | G33: 0 | H33: 1 | I33: 0 | J33: 1 | K33: 0 | L33: 0 | M33: 70 | N33: Tom | O33: None,None,None | P33: 4 | Q33: 757.3333333 | R33: Philip Pace | S33: 757.3333333
A34: Jeff Lide | B34: Rodney | C34: Allied | D34: 6 | E34: 6 | F34: 84 | G34: 7 | H34: 39 | I34: 0 | J34: 1 | K34: 0 | L34: 0 | M34: 2150 | N34: Tyler | O34: None,None,None | P34: 10 | Q34: 1893.333333 | R34: Jeff Lide | S34: 1893.333333

Sheet Nats Wed Cruiser
I1: Winner: | J1: =IF(K2>K3, B2, IF(K3>K2, B3, "Tie")) -> No Flag | L1: Battle Type | M1: Battle Location and Month (i.e. MD May) | N1: Nats | S1: Fleet
A2: Fleet 1 : | B2: Flag | D2: Fleet Units: | E2: 17.5 | F2: Fleet Weight: | G2: 41 | H2: Fleet Battle Damage: | I2: 9420 | J2: Fleet Score: | K2: 5210 | M2: Battle Day | N2: Wed | S2: Mini-Fleet
A3: Fleet 2 : | B3: No Flag | D3: Fleet Units: | E3: 23.5 | F3: Fleet Weight: | G3: 43.5 | H3: Fleet Battle Damage: | I3: 5210 | J3: Fleet Score: | K3: 9220 | M3: Battle Number | N3: Cruiser | S3: Individual
A4: Captian | B4: Ship | C4: Fleet | D4: Class | E4: Units | F4: Above | G4: On | H4: Below | I4: Sinks | J4: Participate all Sorties | K4: Penalties Points | L4: 2nd Sortie Sink | M4: Damage Points | N4: Scored By | O4: Notes | P4: Weight Factor | Q4: Weight Points | R4: Captian | S4: Captain Points | T4: Indiv Points
A5: Philip Pace | B5: Gearing | C5: No Flag | D5: 1 | E5: 1.5 | F5: 4 | G5: 2 | H5: 4 | I5: 1 | J5: 1 | K5: 0 | L5: 1 | M5: 600 | N5: Bob | O5: None,None,None | P5: 4 | Q5: 866.2068966 | R5: Philip Pace | S5: =Q5 -> 866.2068966 | T5: 368.7356322
A6: Randy Stiponovich | B6: Glorie | C6: Flag | D6: 2 | E6: 2.5 | F6: 20 | G6: 5 | H6: 5 | I6: 0 | J6: 1 | K6: 0 | L6: 0 | M6: 450 | N6: Bob | O6: None,None,None | P6: 6 | Q6: 762.4390244 | R6: Randy Stiponovich | S6: =Q6 -> 762.4390244 | T6: 0
A7: John Jones | B7: Gearing | C7: Flag | D7: 1 | E7: 1.5 | F7: 19 | G7: 0 | H7: 12 | I7: 1 | J7: 1 | K7: 0 | L7: 1 | M7: 950 | N7: John | O7: None,None,None | P7: 4 | Q7: 508.2926829 | R7: John Jones | S7: 508.2926829 | T7: 0
A8: Andy Terpstra | B8: Torville | C8: Flag | D8: 3 | E8: 3 | F8: 59 | G8: 16 | H8: 20 | I8: 1 | J8: 1 | K8: 0 | L8: 1 | M8: 2210 | N8: Bob | O8: None,None,None | P8: 7 | Q8: 889.5121951 | R8: Andy Terpstra | S8: 889.5121951 | T8: 0
A9: Mark Lide | B9: Shimakaze | C9: Flag | D9: 1 | E9: 1.5 | F9: 7 | G9: 2 | H9: 2 | I9: 1 | J9: 1 | K9: 0 | L9: 1 | M9: 570 | N9: Bob | O9: None,None,None | P9: 4 | Q9: 508.2926829 | R9: Mark Lide | S9: 508.2926829 | T9: 0
A10: Bob Hoernemann | B10: Radetzky | C10: Flag | D10: 3 | E10: 3.5 | F10: 97 | G10: 22 | H10: 29 | I10: 1 | J10: 1 | K10: 0 | L10: 1 | M10: 2980 | N10: Bob | O10: None,None,None | P10: 7 | Q10: 889.5121951 | R10: Bob Hoernemann | S10: 889.5121951 | T10: 0
A11: Jeff Lide | B11: Luigi Cardona | C11: Flag | D11: 2 | E11: 2 | F11: 22 | G11: 0 | H11: 3 | I11: 1 | J11: 1 | K11: 0 | L11: 1 | M11: 910 | N11: Bob | O11: None,None,None | P11: 6 | Q11: 762.4390244 | R11: Jeff Lide | S11: 762.4390244 | T11: 0
A12: Tom Palmer | B12: Connecticut | C12: Flag | D12: 3 | E12: 3.5 | F12: 41 | G12: 6 | H12: 4 | I12: 1 | J12: 1 | K12: 0 | L12: 1 | M12: 1350 | N12: Tom | O12: None,None,None | P12: 7 | Q12: 889.5121951 | R12: Tom Palmer | S12: 889.5121951 | T12: 0
A13: Kevin Plumer | B13: Lutzow | C13: No Flag | D13: 3 | E13: 3.5 | F13: 75 | G13: 4 | H13: 26 | I13: 1 | J13: 0 | K13: 0 | L13: 0 | M13: 2310 | N13: Andy | O13: None,None,None | P13: 3.5 | Q13: 757.9310345 | R13: Kevin Plumer | S13: 757.9310345 | T13: 322.6436782
A14: Nathan Graham | B14: Gearing | C14: No Flag | D14: 1 | E14: 1.5 | F14: 3 | G14: 1 | H14: 6 | I14: 1 | J14: 1 | K14: 0 | L14: 1 | M14: 630 | N14: Bob | O14: None,None,None | P14: 4 | Q14: 866.2068966 | R14: Nathan Graham | S14: 866.2068966 | T14: 368.7356322
A15: Charley Stephens | B15: Radetzky | C15: No Flag | D15: 3 | E15: 3.5 | F15: 21 | G15: 2 | H15: 3 | I15: 0 | J15: 1 | K15: 0 | L15: 0 | M15: 340 | N15: Charley | O15: None,None,None | P15: 7 | Q15: 1515.862069 | R15: Charley Stephens | S15: 1515.862069 | T15: 645.2873563
A16: Isaac McKinzie | B16: Radetzky | C16: No Flag | D16: 3 | E16: 3.5 | F16: 22 | G16: 10 | H16: 8 | I16: 0 | J16: 1 | K16: 200 | L16: 0 | M16: 660 | N16: Lee | O16: Ram Below tom,None,None | P16: 7 | Q16: 1315.862069 | R16: Isaac McKinzie | S16: 1315.862069 | T16: 645.2873563
A17: Tyler Helland | B17: Duca | C17: No Flag | D17: 2 | E17: 2.5 | F17: 16 | G17: 2 | H17: 0 | I17: 0 | J17: 1 | K17: 0 | L17: 0 | M17: 200 | N17: Tyler | O17: None,None,None | P17: 6 | Q17: 1299.310345 | R17: Tyler Helland | S17: 1299.310345 | T17: 553.1034483
A18: Richard Whitsell | B18: Jamaica | C18: No Flag | D18: 2 | E18: 2.5 | F18: 26 | G18: 2 | H18: 0 | I18: 0 | J18: 1 | K18: 0 | L18: 0 | M18: 300 | N18: Rick | O18: None,None,None | P18: 6 | Q18: 1299.310345 | R18: Richard Whitsell | S18: 1299.310345 | T18: 553.1034483
A19: Craig Singer | B19: Agano | C19: No Flag | D19: 2 | E19: 2.5 | F19: 6 | G19: 1 | H19: 1 | I19: 0 | J19: 0 | K19: 0 | L19: 0 | M19: 110 | N19: Craig | O19: None,None,None | P19: 3 | Q19: 649.6551724 | R19: Craig Singer | S19: 649.6551724 | T19: 276.5517241
A20: Kas Gaigalas | B20: Glorie | C20: No Flag | D20: 2 | E20: 2.5 | F20: 0 | G20: 0 | H20: 2 | I20: 0 | J20: 0 | K20: 0 | L20: 0 | M20: 60 | N20: Kas | O20: None,None,None | P20: 3 | Q20: 649.6551724 | R20: Kas Gaigalas | S20: 649.6551724 | T20: 276.5517241

Sheet Nats Wed CS v IM
I1: Winner: | J1: =IF(K2>K3, B2, IF(K3>K2, B3, "Tie")) -> Charley | L1: Battle Type | M1: Battle Location and Month (i.e. MD May) | N1: Nats | S1: Fleet
A2: Fleet 1 : | B2: Charley | D2: Fleet Units: | E2: 3.5 | F2: Fleet Weight: | G2: 7 | H2: Fleet Battle Damage: | I2: 860 | J2: Fleet Score: | K2: 1040 | M2: Battle Day | N2: Wed | S2: Mini-Fleet
A3: Fleet 2 : | B3: Isaac | D3: Fleet Units: | E3: 3.5 | F3: Fleet Weight: | G3: 7 | H3: Fleet Battle Damage: | I3: 1040 | J3: Fleet Score: | K3: 860 | M3: Battle Number | N3: CS v IM | S3: Individual
A4: Captian | B4: Ship | C4: Fleet | D4: Class | E4: Units | F4: Above | G4: On | H4: Below | I4: Sinks | J4: Participate all Sorties | K4: Penalties Points | L4: 2nd Sortie Sink | M4: Damage Points | N4: Scored By | O4: Notes | P4: Weight Factor | Q4: Weight Points | R4: Captian | S4: Captain Points | T4: Indiv Points
A5: Charley Stephens | B5: Radetzky | C5: Charley | D5: 3 | E5: 3.5 | F5: 19 | G5: 11 | H5: 15 | I5: 0 | J5: 1 | K5: 0 | L5: 0 | M5: 860 | N5: Isaac | O5: None,None,None | P5: 7 | Q5: 1040 | R5: Charley Stephens | S5: 1040 | T5: 180
A6: Isaac McKinzie | B6: Radetzky | C6: Isaac | D6: 3 | E6: 3.5 | F6: 15 | G6: 16 | H6: 19 | I6: 0 | J6: 1 | K6: 0 | L6: 0 | M6: 1040 | N6: Charley | O6: None,None,None | P6: 7 | Q6: 860 | R6: Isaac McKinzie | S6: 860 | T6: 0

Sheet Nats Wed CS v LM
I1: Winner: | J1: =IF(K2>K3, B2, IF(K3>K2, B3, "Tie")) -> Charley | L1: Battle Type | M1: Battle Location and Month (i.e. MD May) | N1: Nats | S1: Fleet
A2: Fleet 1 : | B2: Charley | D2: Fleet Units: | E2: 3.5 | F2: Fleet Weight: | G2: 7 | H2: Fleet Battle Damage: | I2: 850 | J2: Fleet Score: | K2: 1200 | M2: Battle Day | N2: Wed | S2: Mini-Fleet
A3: Fleet 2 : | B3: Lee | D3: Fleet Units: | E3: 3.5 | F3: Fleet Weight: | G3: 7 | H3: Fleet Battle Damage: | I3: 1200 | J3: Fleet Score: | K3: 850 | M3: Battle Number | N3: CS v LM | S3: Individual
A4: Captian | B4: Ship | C4: Fleet | D4: Class | E4: Units | F4: Above | G4: On | H4: Below | I4: Sinks | J4: Participate all Sorties | K4: Penalties Points | L4: 2nd Sortie Sink | M4: Damage Points | N4: Scored By | O4: Notes | P4: Weight Factor | Q4: Weight Points | R4: Captian | S4: Captain Points | T4: Indiv Points
A5: Lee McKinzie | B5: Radetzky | C5: Lee | D5: 3 | E5: 3.5 | F5: 32 | G5: 17 | H5: 18 | I5: 0 | J5: 1 | K5: 0 | L5: 0 | M5: 1200 | N5: Charley | O5: None,None,None | P5: 7 | Q5: 850 | R5: Lee McKinzie | S5: 850 | T5: 0
A6: Charley Stephens | B6: Radetzky | C6: Charley | D6: 3 | E6: 3.5 | F6: 15 | G6: 11 | H6: 16 | I6: 0 | J6: 1 | K6: 0 | L6: 0 | M6: 850 | N6: Lee | O6: None,None,None | P6: 7 | Q6: 1200 | R6: Charley Stephens | S6: 1200 | T6: 350

Sheet Nats Wed KP v carl
I1: Winner: | J1: =IF(K2>K3, B2, IF(K3>K2, B3, "Tie")) -> Kevin | L1: Battle Type | M1: Battle Location and Month (i.e. MD May) | N1: Nats | S1: Fleet
A2: Fleet 1 : | B2: Kevin | D2: Fleet Units: | E2: 4.5 | F2: Fleet Weight: | G2: 8 | H2: Fleet Battle Damage: | I2: 1210 | J2: Fleet Score: | K2: 3390 | M2: Battle Day | N2: Wed | S2: Mini-Fleet
A3: Fleet 2 : | B3: Carl | D3: Fleet Units: | E3: 6 | F3: Fleet Weight: | G3: 10 | H3: Fleet Battle Damage: | I3: 3390 | J3: Fleet Score: | K3: 1210 | M3: Battle Number | N3: KP v carl | S3: Individual
A4: Captian | B4: Ship | C4: Fleet | D4: Class | E4: Units | F4: Above | G4: On | H4: Below | I4: Sinks | J4: Participate all Sorties | K4: Penalties Points | L4: 2nd Sortie Sink | M4: Damage Points | N4: Scored By | O4: Notes | P4: Weight Factor | Q4: Weight Points | R4: Captian | S4: Captain Points | T4: Indiv Points
A5: Carl Camurati | B5: Nelson | C5: Carl | D5: 6 | E5: 6 | F5: 128 | G5: 9 | H5: 31 | I5: 1 | J5: 1 | K5: 0 | L5: 1 | M5: 3390 | N5: Kevin | O5: None,None,None | P5: 10 | Q5: 1210 | R5: Carl Camurati | S5: =Q5 -> 1210 | T5: 0
A6: Kevin Plumer | B6: Seydlitz | C6: Kevin | D6: 4 | E6: 4.5 | F6: 16 | G6: 3 | H6: 33 | I6: 0 | J6: 1 | K6: 0 | L6: 0 | M6: 1210 | N6: Carl | O6: None,None,None | P6: 8 | Q6: 3390 | R6: Kevin Plumer | S6: 3390 | T6: 2180

Sheet Nats Wed Arena v courbet
I1: Winner: | J1: =IF(K2>K3, B2, IF(K3>K2, B3, "Tie")) -> Courbets | L1: Battle Type | M1: Battle Location and Month (i.e. MD May) | N1: Nats | S1: Fleet
A2: Fleet 1 : | B2: Arenas | D2: Fleet Units: | E2: 10.5 | F2: Fleet Weight: | G2: 18 | H2: Fleet Battle Damage: | I2: 2750 | J2: Fleet Score: | K2: 840 | M2: Battle Day | N2: Wed | S2: Mini-Fleet
A3: Fleet 2 : | B3: Courbets | D3: Fleet Units: | E3: 9 | F3: Fleet Weight: | G3: 16 | H3: Fleet Battle Damage: | I3: 840 | J3: Fleet Score: | K3: 2750 | M3: Battle Number | N3: Arena v courbet | S3: Individual
A4: Captian | B4: Ship | C4: Fleet | D4: Class | E4: Units | F4: Above | G4: On | H4: Below | I4: Sinks | J4: Participate all Sorties | K4: Penalties Points | L4: 2nd Sortie Sink | M4: Damage Points | N4: Scored By | O4: Notes | P4: Weight Factor | Q4: Weight Points | R4: Captian | S4: Captain Points | T4: Indiv Points
A5: Robert Arena | B5: Arizona | C5: Arenas | D5: 5 | E5: 5.5 | F5: 40 | G5: 2 | H5: 10 | I5: 1 | J5: 1 | K5: 0 | L5: 1 | M5: 1640 | N5: Steve | O5: None,None,None | P5: 9 | Q5: 420 | R5: Robert Arena | S5: =Q5 -> 420 | T5: 0
A6: Steve Andrews | B6: Courbet | C6: Courbets | D6: 4 | E6: 4.5 | F6: 14 | G6: 2 | H6: 4 | I6: 0 | J6: 1 | K6: 0 | L6: 0 | M6: 300 | N6: Rob | O6: None,None,None | P6: 8 | Q6: 1375 | R6: Steve Andrews | S6: 1375 | T6: 955
A7: Kevin Plumer | B7: Courbet | C7: Courbets | D7: 4 | E7: 4.5 | F7: 11 | G7: 5 | H7: 11 | I7: 0 | J7: 1 | K7: 0 | L7: 0 | M7: 540 | N7: Ken | O7: None,None,None | P7: 8 | Q7: 1375 | R7: Kevin Plumer | S7: 1375 | T7: 955
A8: Ken Arena | B8: Iron Duke | C8: Arenas | D8: 5 | E8: 5 | F8: 40 | G8: 7 | H8: 19 | I8: 0 | J8: 1 | K8: 0 | L8: 0 | M8: 1110 | N8: Steve | O8: None,None,None | P8: 9 | Q8: 420 | R8: Ken Arena | S8: 420 | T8: 0

Sheet Nats Wed KP v SA
I1: Winner: | J1: =IF(K2>K3, B2, IF(K3>K2, B3, "Tie")) -> Steve | L1: Battle Type | M1: Battle Location and Month (i.e. MD May) | N1: Nats | S1: Fleet
A2: Fleet 1 : | B2: Kevin | D2: Fleet Units: | E2: 4.5 | F2: Fleet Weight: | G2: 8 | H2: Fleet Battle Damage: | I2: 2850 | J2: Fleet Score: | K2: 2050 | M2: Battle Day | N2: Wed | S2: Mini-Fleet
A3: Fleet 2 : | B3: Steve | D3: Fleet Units: | E3: 4.5 | F3: Fleet Weight: | G3: 8 | H3: Fleet Battle Damage: | I3: 2050 | J3: Fleet Score: | K3: 2850 | M3: Battle Number | N3: KP v SA | S3: Individual
A4: Captian | B4: Ship | C4: Fleet | D4: Class | E4: Units | F4: Above | G4: On | H4: Below | I4: Sinks | J4: Participate all Sorties | K4: Penalties Points | L4: 2nd Sortie Sink | M4: Damage Points | N4: Scored By | O4: Notes | P4: Weight Factor | Q4: Weight Points | R4: Captian | S4: Captain Points | T4: Indiv Points
A5: Kevin Plumer | B5: Courbet | C5: Kevin | D5: 4 | E5: 4.5 | F5: 43 | G5: 9 | H5: 48 | I5: 1 | J5: 1 | K5: 0 | L5: 1 | M5: 2850 | N5: Steve | O5: None,None,None | P5: 8 | Q5: 2050 | R5: Kevin Plumer | S5: =Q5 -> 2050 | T5: 0
A6: Steve Andrews | B6: Courbet | C6: Steve | D6: 4 | E6: 4.5 | F6: 21 | G6: 14 | H6: 52 | I6: 0 | J6: 1 | K6: 0 | L6: 0 | M6: 2050 | N6: Kevin | O6: None,None,None | P6: 8 | Q6: 2850 | R6: Steve Andrews | S6: 2850 | T6: 800

Sheet Nats Wed 1
I1: Winner: | J1: =IF(K2>K3, B2, IF(K3>K2, B3, "Tie")) -> Axis | L1: Battle Type | M1: Battle Location and Month (i.e. MD May) | N1: Nats | S1: Fleet
A2: Fleet 1 : | B2: Allied | D2: Fleet Units: | E2: 41.5 | F2: Fleet Weight: | G2: 75 | H2: Fleet Battle Damage: | I2: 5030 | J2: Fleet Score: | K2: 2800 | M2: Battle Day | N2: Wed | S2: Mini-Fleet
A3: Fleet 2 : | B3: Axis | D3: Fleet Units: | E3: 24.5 | F3: Fleet Weight: | G3: 43 | H3: Fleet Battle Damage: | I3: 2800 | J3: Fleet Score: | K3: 5030 | M3: Battle Number | N3: 1 | S3: Individual
A4: Captian | B4: Ship | C4: Fleet | D4: Class | E4: Units | F4: Above | G4: On | H4: Below | I4: Sinks | J4: Participate all Sorties | K4: Penalties Points | L4: 2nd Sortie Sink | M4: Damage Points | N4: Scored By | O4: Notes | P4: Weight Factor | Q4: Weight Points | R4: Captian | S4: Captain Points | T4: Indiv Points
A5: Craig Singer | B5: Nagato | C5: Axis | D5: 6 | E5: 6 | F5: 3 | G5: 0 | H5: 1 | I5: 0 | J5: 1 | K5: 0 | L5: 0 | M5: 60 | N5: Kas | O5: None,None,None | P5: 10 | Q5: 1169.767442 | R5: Craig Singer | S5: 1169.767442
A6: Brian Lamb | B6: Lutzow | C6: Axis | D6: 3 | E6: 3.5 | F6: 0 | G6: 0 | H6: 0 | I6: 0 | J6: 1 | K6: 0 | L6: 0 | M6: 0 | N6: Carl | O6: None,None,None | P6: 7 | Q6: 818.8372093 | R6: Brian Lamb | S6: 818.8372093
A7: Carl Camurati | B7: Nelson | C7: Allied | D7: 6 | E7: 6 | F7: 27 | G7: 4 | H7: 4 | I7: 0 | J7: 1 | K7: 0 | L7: 0 | M7: 470 | N7: Brian | O7: None,None,None | P7: 10 | Q7: 373.3333333 | R7: Carl Camurati | S7: 373.3333333
A8: Jeff Lide | B8: Rodney | C8: Allied | D8: 6 | E8: 6 | F8: 35 | G8: 6 | H8: 8 | I8: 0 | J8: 1 | K8: 0 | L8: 0 | M8: 710 | N8: Mark | O8: None,None,None | P8: 10 | Q8: 373.3333333 | R8: Jeff Lide | S8: 373.3333333
A9: Mark Lide | B9: Nagato | C9: Axis | D9: 6 | E9: 6 | F9: 39 | G9: 7 | H9: 20 | I9: 0 | J9: 1 | K9: 0 | L9: 0 | M9: 1130 | N9: Jeff | O9: None,None,None | P9: 10 | Q9: 1169.767442 | R9: Mark Lide | S9: 1169.767442
A10: Isaac McKinzie | B10: Radetzky | C10: Allied | D10: 3 | E10: 3.5 | F10: 1 | G10: 0 | H10: 0 | I10: 0 | J10: 1 | K10: 0 | L10: 0 | M10: 10 | N10: Lee | O10: None,None,None | P10: 7 | Q10: 261.3333333 | R10: Isaac McKinzie | S10: 261.3333333
A11: Charley Stephens | B11: Seydlitz | C11: Axis | D11: 4 | E11: 4.5 | F11: 0 | G11: 0 | H11: 0 | I11: 0 | J11: 1 | K11: 0 | L11: 0 | M11: 0 | N11: Lee | O11: None,None,None | P11: 8 | Q11: 935.8139535 | R11: Charley Stephens | S11: 935.8139535
A12: Richard Whitsell | B12: Jamaica | C12: Allied | D12: 2 | E12: 2.5 | F12: 9 | G12: 1 | H12: 0 | I12: 0 | J12: 1 | K12: 0 | L12: 0 | M12: 110 | N12: Rick | O12: None,None,None | P12: 6 | Q12: 224 | R12: Richard Whitsell | S12: 224
A13: Tom Palmer | B13: Warspite | C13: Allied | D13: 5 | E13: 5.5 | F13: 10 | G13: 3 | H13: 8 | I13: 0 | J13: 1 | K13: 0 | L13: 0 | M13: 400 | N13: Tom | O13: None,None,None | P13: 9 | Q13: 336 | R13: Tom Palmer | S13: 336
A14: William Tustin | B14: Suffren | C14: Allied | D14: 3 | E14: 3 | F14: 47 | G14: 11 | H14: 31 | I14: 0 | J14: 1 | K14: 0 | L14: 0 | M14: 1620 | N14: Craig | O14: None,None,None | P14: 7 | Q14: 261.3333333 | R14: William Tustin | S14: 261.3333333
A15: Steve Andrews | B15: Courbet | C15: Allied | D15: 4 | E15: 4.5 | F15: 11 | G15: 2 | H15: 0 | I15: 0 | J15: 1 | K15: 0 | L15: 0 | M15: 150 | N15: Brian | O15: None,None,None | P15: 8 | Q15: 298.6666667 | R15: Steve Andrews | S15: 298.6666667
A16: Thomas Tanner | B16: Ostfriesland | C16: Axis | D16: 4 | E16: 4.5 | F16: 43 | G16: 4 | H16: 10 | I16: 1 | J16: 1 | K16: 0 | L16: 1 | M16: 1610 | N16: Kevin | O16: None,None,None | P16: 8 | Q16: 935.8139535 | R16: Thomas Tanner | S16: =Q16 -> 935.8139535
A17: Kevin Plumer | B17: Courbet | C17: Allied | D17: 4 | E17: 4.5 | F17: 4 | G17: 2 | H17: 10 | I17: 1 | J17: 1 | K17: 0 | L17: 1 | M17: 1180 | N17: Tom | O17: None,None,None | P17: 8 | Q17: 298.6666667 | R17: Kevin Plumer | S17: =Q17 -> 298.6666667
A18: Kas Gaigalas | B18: Washington | C18: Allied | D18: 6 | E18: 6 | F18: 9 | G18: 7 | H18: 5 | I18: 0 | J18: 1 | K18: 0 | L18: 0 | M18: 380 | N18: craig | O18: None,None,None | P18: 10 | Q18: 373.3333333 | R18: Kas Gaigalas | S18: 373.3333333

Sheet Nats Tues Campaign
I1: Winner: | J1: =IF(K2>K3, B2, IF(K3>K2, B3, "Tie")) -> Allied | M1: Battle Location and Month (i.e. MD May) | N1: Nats | P1: Convoy Runs | W1: Sinks | AC1: Convoy Friendly Ram | AJ1: Ram Penalties
A2: Fleet 1 : | B2: Allied | F2: Fleet Points: | G2: =B15 -> 14550 | H2: Fleet Penalties: | I2: =B16 -> 0 | J2: Fleet Score: | K2: =B17 -> 14550 | M2: Battle Day | N2: Tues | P2: Captain | Q2: Fleet | R2: Ship | S2: Ship Length | T2: Number of Runs | U2: Points | W2: Captain | X2: Fleet | Y2: Ship | Z2: Class | AA2: Sink Points | AC2: Ramming Captain | AD2: Fleet | AE2: Convoy Ship | AF2: Convoy Captain | AG2: Ship Length | AH2: Points | AJ2: Ramming Captain | AK2: Fleet | AL2: Ram Type | AM2: Rammed Captain | AN2: Rammed Ship | AO2: Rammed Ship Class | AP2: Ram Sink | AQ2: Points
A3: Fleet 2 : | B3: Axis | F3: Fleet Points: | G3: =C15 -> 5250 | H3: Fleet Penalties: | I3: =C16 -> 400 | J3: Fleet Score: | K3: =C17 -> 4850 | P3: Tom Palmer | Q3: Allied | R3: Saratoga | S3: 74 | T3: 4 | U3: 3400 | W3: William Tustin | X3: Allied | Y3: Jean Bart | Z3: 6 | AA3: 1000 | AJ3: Bob Hoernemann | AK3: Axis | AL3: Sink | AM3: John Jones | AN3: Gearing | AO3: 1 | AP3: 1 | AQ3: 400
P4: Nathan Graham | Q4: Allied | R4: Mathews | S4: 50 | T4: 2 | U4: 1100 | W4: Kas Gaigalas | X4: Allied | Y4: Glorie | Z4: 2 | AA4: 600
A5: Fleet: | B5: =B2 -> Allied | C5: =B3 -> Axis | P5: Cameron Hunt | Q5: Allied | R5: La Baguette | S5: 37 | T5: 3 | U5: 1650 | W5: Ken Arena | X5: Allied | Y5: Iron Duke | Z5: 5 | AA5: 900
A6: Targets Remaining: | B6: 0 | C6: 0 | P6: Cameron Hunt | Q6: Allied | R6: #6 FST | S6: 27 | T6: 1 | U6: 300 | W6: Mark Kuntz | X6: Axis | Y6: Nassau | Z6: 4 | AA6: 800
A7: Target Points: | B7: 0 | C7: 0 | P7: Isaac McKinzie | Q7: Allied | R7: LST | S7: 27 | T7: 1 | U7: 300 | W7: Brian Lamb | X7: Axis | Y7: Lutzow | Z7: 3 | AA7: 700
A8: Convoy Run Points: | B8: 11250 | C8: 2750 | P8: William Tustin | Q8: Allied | R8: LST | S8: 27 | T8: 4 | U8: 1200 | W8: Carl Bitondo | X8: Axis | Y8: Deutschland | Z8: 3 | AA8: 700
A9: Scuttled Convoy Points: | B9: 0 | C9: 0 | P9: Robert Stalnaker | Q9: Allied | R9: Red Oak | S9: 37 | T9: 6 | U9: 3300 | W9: Eric Bitondo | X9: Axis | Y9: Deutschland | Z9: 3 | AA9: 700
A10: Sink Points: | B10: 3300 | C10: 2500 | P10: Gerald Roberts | Q10: Axis | R10: Mizaho | S10: 50 | T10: 3 | U10: 1650 | W10: Mark Lide | X10: Axis | Y10: Shimu | Z10: 1 | AA10: 400
A11: Convoy Friendly Ram Points: | P11: David Haynes | Q11: Axis | R11: mizaho | S11: 50 | T11: 2 | U11: 1100
A12: Ram Penalty Points: | C12: 400
A13: No Ship on Water Points: | B13: 0 | C13: 0
A14: Convoy Run Every 10 Min Points: | B14: 0 | C14: 0
A15: Total Points: | B15: =B7+B8+B9+B10+B11+B13+B14 -> 14550 | C15: =C7+C8+C9+C10+C11+C13+C14 -> 5250
A16: Total Penalties: | B16: =B12 -> 0 | C16: =C12 -> 400
A17: Fleet Score: | B17: =B15-B16 -> 14550 | C17: =C15-C16 -> 4850

Sheet Nats Tues 1
I1: Winner: | J1: =IF(K2>K3, B2, IF(K3>K2, B3, "Tie")) -> Axis | L1: Battle Type | M1: Battle Location and Month (i.e. MD May) | N1: Nats | S1: Fleet
A2: Fleet 1 : | B2: Allied | D2: Fleet Units: | E2: 81 | F2: Fleet Weight: | G2: 139.5 | H2: Fleet Battle Damage: | I2: 20620 | J2: Fleet Score: | K2: 18770 | M2: Battle Day | N2: Tues | S2: Mini-Fleet
A3: Fleet 2 : | B3: Axis | D3: Fleet Units: | E3: 70 | F3: Fleet Weight: | G3: 109.5 | H3: Fleet Battle Damage: | I3: 19020 | J3: Fleet Score: | K3: 20620 | M3: Battle Number | N3: 1 | S3: Individual
A4: Captian | B4: Ship | C4: Fleet | D4: Class | E4: Units | F4: Above | G4: On | H4: Below | I4: Sinks | J4: Participate all Sorties | K4: Penalties Points | L4: 2nd Sortie Sink | M4: Damage Points | N4: Scored By | O4: Notes | P4: Weight Factor | Q4: Weight Points | R4: Captian | S4: Captain Points | T4: Indiv Points
A5: Randy Stiponovich | B5: Glorie | C5: Axis | D5: 2 | E5: 2.5 | F5: 15 | G5: 2 | H5: 16 | I5: 0 | J5: 1 | K5: 0 | L5: 0 | M5: 670 | N5: Rick | O5: None,None,None | P5: 6 | Q5: 1129.863014 | R5: Randy Stiponovich | S5: 1129.863014
A6: Brian Lamb | B6: Lutzow | C6: Axis | D6: 3 | E6: 3.5 | F6: 48 | G6: 5 | H6: 3 | I6: 0 | J6: 1 | K6: 0 | L6: 0 | M6: 670 | N6: Chris | O6: None,None,None | P6: 7 | Q6: 1318.173516 | R6: Brian Lamb | S6: 1318.173516
A7: John Jones | B7: Gearing | C7: Allied | D7: 1 | E7: 1.5 | F7: 0 | G7: 0 | H7: 0 | I7: 0 | J7: 1 | K7: 0 | L7: 0 | M7: 0 | N7: Brian | O7: None,None,None | P7: 4 | Q7: 545.3763441 | R7: John Jones | S7: 545.3763441
A8: Chris Pearce | B8: Suffren | C8: Allied | D8: 3 | E8: 3 | F8: 0 | G8: 0 | H8: 0 | I8: 0 | J8: 1 | K8: 0 | L8: 0 | M8: 0 | N8: Brian | O8: None,None,None | P8: 7 | Q8: 954.4086022 | R8: Chris Pearce | S8: 954.4086022
A9: Mark Lide | B9: Nagato | C9: Axis | D9: 6 | E9: 6 | F9: 57 | G9: 7 | H9: 29 | I9: 0 | J9: 1 | K9: 0 | L9: 0 | M9: 1580 | N9: Jeff | O9: None,None,None | P9: 10 | Q9: 1883.105023 | R9: Mark Lide | S9: 1883.105023
A10: Mark Kuntz | B10: Nassau | C10: Axis | D10: 4 | E10: 4 | F10: 46 | G10: 9 | H10: 6 | I10: 1 | J10: 0 | K10: 0 | L10: 0 | M10: 1620 | N10: Steve | O10: None,None,None | P10: 4 | Q10: 753.2420091 | R10: Mark Kuntz | S10: 753.2420091
A11: Brandon Smith | B11: Caio Duilio | C11: Axis | D11: 4 | E11: 4.5 | F11: 37 | G11: 4 | H11: 5 | I11: 0 | J11: 1 | K11: 0 | L11: 0 | M11: 600 | N11: Lou | O11: None,None,None | P11: 8 | Q11: 1506.484018 | R11: Brandon Smith | S11: 1506.484018
A12: Thomas Tanner | B12: Ostfriesland | C12: Axis | D12: 4 | E12: 4.5 | F12: 31 | G12: 3 | H12: 21 | I12: 1 | J12: 1 | K12: 0 | L12: 1 | M12: 1800 | N12: Ken | O12: None,None,None | P12: 8 | Q12: 1506.484018 | R12: Thomas Tanner | S12: 1306.484018
A13: Bob Hoernemann | B13: Radetzky | C13: Axis | D13: 3 | E13: 3.5 | F13: 11 | G13: 2 | H13: 1 | I13: 0 | J13: 0 | K13: 0 | L13: 0 | M13: 180 | N13: Rick | O13: None,None,None | P13: 3.5 | Q13: 659.086758 | R13: Bob Hoernemann | S13: 659.086758
A14: Bob Hoernemann | B14: Kongo | C14: Axis | D14: 4 | E14: 4.5 | F14: 18 | G14: 1 | H14: 8 | I14: 1 | J14: 0 | K14: 0 | L14: 0 | M14: 1240 | N14: Rick | O14: None,None,None | P14: 4 | Q14: 753.2420091 | R14: Bob Hoernemann | S14: 753.2420091
A15: Tyler Helland | B15: Nagato | C15: Axis | D15: 6 | E15: 6 | F15: 50 | G15: 8 | H15: 12 | I15: 0 | J15: 1 | K15: 0 | L15: 0 | M15: 1020 | N15: Lou | O15: None,None,None | P15: 10 | Q15: 1883.105023 | R15: Tyler Helland | S15: 1883.105023
A16: Andy Terpstra | B16: Kongo | C16: Axis | D16: 4 | E16: 4.5 | F16: 69 | G16: 6 | H16: 43 | I16: 0 | J16: 1 | K16: 0 | L16: 0 | M16: 2100 | N16: Tom P | O16: None,None,None | P16: 8 | Q16: 1506.484018 | R16: Andy Terpstra | S16: 1506.484018
A17: Charley Stephens | B17: Seydlitz | C17: Axis | D17: 4 | E17: 4.5 | F17: 31 | G17: 18 | H17: 29 | I17: 0 | J17: 1 | K17: 0 | L17: 0 | M17: 1540 | N17: Lee | O17: None,None,None | P17: 8 | Q17: 1506.484018 | R17: Charley Stephens | S17: 1506.484018
A18: David Haynes | B18: Kongo | C18: Axis | D18: 4 | E18: 4.5 | F18: 37 | G18: 1 | H18: 5 | I18: 0 | J18: 1 | K18: 0 | L18: 0 | M18: 540 | N18: Kevin | O18: None,None,None | P18: 8 | Q18: 1506.484018 | R18: David Haynes | S18: 1506.484018
A19: Gerald Roberts | B19: Kongo | C19: Axis | D19: 4 | E19: 4.5 | F19: 103 | G19: 15 | H19: 42 | I19: 0 | J19: 1 | K19: 0 | L19: 0 | M19: 2590 | N19: Kevin | O19: None,None,None | P19: 8 | Q19: 1506.484018 | R19: Gerald Roberts | S19: 1506.484018
A20: Craig Singer | B20: Nagato | C20: Axis | D20: 6 | E20: 6 | F20: 31 | G20: 5 | H20: 23 | I20: 0 | J20: 1 | K20: 0 | L20: 0 | M20: 1100 | N20: Kevin | O20: None,None,None | P20: 10 | Q20: 1883.105023 | R20: Craig Singer | S20: 1883.105023
A21: Lee McKinzie | B21: North Carolina | C21: Allied | D21: 6 | E21: 6 | F21: 55 | G21: 21 | H21: 43 | I21: 1 | J21: 1 | K21: 0 | L21: 1 | M21: 3260 | N21: Charley | O21: None,None,None | P21: 10 | Q21: 1363.44086 | R21: Lee McKinzie | S21: 1163.44086
A22: Nathan Graham | B22: Gearing | C22: Allied | D22: 1 | E22: 1.5 | F22: 8 | G22: 0 | H22: 1 | I22: 0 | J22: 1 | K22: 0 | L22: 0 | M22: 110 | N22: Carl | O22: None,None,None | P22: 4 | Q22: 545.3763441 | R22: Nathan Graham | S22: 545.3763441
A23: Eric Bitondo | B23: Deutschland | C23: Axis | D23: 3 | E23: 3.5 | F23: 7 | G23: 4 | H23: 5 | I23: 1 | J23: 0 | K23: 0 | L23: 0 | M23: 1000 | N23: Nate | O23: None,None,None | P23: 3.5 | Q23: 659.086758 | R23: Eric Bitondo | S23: 659.086758
A24: Carl Bitondo | B24: Deutschland | C24: Axis | D24: 3 | E24: 3.5 | F24: 2 | G24: 1 | H24: 1 | I24: 1 | J24: 0 | K24: 0 | L24: 0 | M24: 770 | N24: Nate | O24: None,None,None | P24: 3.5 | Q24: 659.086758 | R24: Carl Bitondo | S24: 659.086758
A25: Robert Stalnaker | B25: Revenge | C25: Allied | D25: 5 | E25: 5.5 | F25: 44 | G25: 4 | H25: 7 | I25: 1 | J25: 1 | K25: 0 | L25: 1 | M25: 1630 | N25: Mark | O25: None,None,None | P25: 9 | Q25: 1227.096774 | R25: Robert Stalnaker | S25: 1027.096774
A26: Lou Meszaros | B26: Courbet | C26: Allied | D26: 4 | E26: 4.5 | F26: 31 | G26: 14 | H26: 22 | I26: 0 | J26: 1 | K26: 0 | L26: 0 | M26: 1250 | N26: Brandon | O26: None,None,None | P26: 8 | Q26: 1090.752688 | R26: Lou Meszaros | S26: 1090.752688
A27: Richard Whitsell | B27: Jamaica | C27: Allied | D27: 2 | E27: 2.5 | F27: 2 | G27: 1 | H27: 2 | I27: 0 | J27: 1 | K27: 0 | L27: 0 | M27: 100 | N27: Tyler | O27: None,None,None | P27: 6 | Q27: 818.0645161 | R27: Richard Whitsell | S27: 818.0645161
A28: Marty Hayes | B28: South Carolina | C28: Allied | D28: 4 | E28: 4 | F28: 1 | G28: 0 | H28: 1 | I28: 0 | J28: 1 | K28: 0 | L28: 0 | M28: 40 | N28: Craig | O28: None,None,None | P28: 8 | Q28: 1090.752688 | R28: Marty Hayes | S28: 1090.752688
A29: Isaac McKinzie | B29: Radetzky | C29: Allied | D29: 3 | E29: 3.5 | F29: 6 | G29: 4 | H29: 7 | I29: 0 | J29: 1 | K29: 0 | L29: 0 | M29: 350 | N29: Charley | O29: None,None,None | P29: 7 | Q29: 954.4086022 | R29: Isaac McKinzie | S29: 954.4086022
A30: Ken Arena | B30: Iron Duke | C30: Allied | D30: 5 | E30: 5 | F30: 47 | G30: 8 | H30: 13 | I30: 0 | J30: 1 | K30: 0 | L30: 0 | M30: 1020 | N30: Tom | O30: None,None,None | P30: 9 | Q30: 1227.096774 | R30: Ken Arena | S30: 1227.096774
A31: Kas Gaigalas | B31: Washington | C31: Allied | D31: 6 | E31: 6 | F31: 8 | G31: 1 | H31: 2 | I31: 0 | J31: 1 | K31: 250 | L31: 0 | M31: 160 | N31: Gerald | O31: Speed Violation First Offense,None,None | P31: 10 | Q31: 1113.44086 | R31: Kas Gaigalas | S31: 1113.44086
A32: Jeff Lide | B32: Rodney | C32: Allied | D32: 6 | E32: 6 | F32: 51 | G32: 2 | H32: 30 | I32: 0 | J32: 1 | K32: 0 | L32: 0 | M32: 1450 | N32: Tyler | O32: None,None,None | P32: 10 | Q32: 1363.44086 | R32: Jeff Lide | S32: 1363.44086
A33: Carl Camurati | B33: Nelson | C33: Allied | D33: 6 | E33: 6 | F33: 125 | G33: 8 | H33: 23 | I33: 0 | J33: 1 | K33: 0 | L33: 0 | M33: 2100 | N33: Craig | O33: None,None,None | P33: 10 | Q33: 1363.44086 | R33: Carl Camurati | S33: 1363.44086
A34: Steve Andrews | B34: Courbet | C34: Allied | D34: 4 | E34: 4.5 | F34: 32 | G34: 12 | H34: 18 | I34: 0 | J34: 1 | K34: 0 | L34: 0 | M34: 1100 | N34: Craig | O34: None,None,None | P34: 8 | Q34: 1090.752688 | R34: Steve Andrews | S34: 1090.752688
A35: Philip Pace | B35: Gearing | C35: Allied | D35: 1 | E35: 1.5 | F35: 3 | G35: 0 | H35: 0 | I35: 0 | J35: 1 | K35: 0 | L35: 0 | M35: 30 | N35: Tom | O35: None,None,None | P35: 4 | Q35: 545.3763441 | R35: Philip Pace | S35: 545.3763441
A36: Tom Palmer | B36: Warspite | C36: Allied | D36: 5 | E36: 5.5 | F36: 76 | G36: 13 | H36: 47 | I36: 0 | J36: 1 | K36: 0 | L36: 0 | M36: 2430 | N36: Tyler | O36: None,None,None | P36: 9 | Q36: 1227.096774 | R36: Tom Palmer | S36: 1227.096774
A37: Kevin Plumer | B37: Courbet | C37: Allied | D37: 4 | E37: 4.5 | F37: 39 | G37: 6 | H37: 32 | I37: 0 | J37: 1 | K37: 0 | L37: 0 | M37: 1470 | N37: Carl B | O37: None,None,None | P37: 8 | Q37: 1090.752688 | R37: Kevin Plumer | S37: 1090.752688
A38: William Tustin | B38: Jean Bart | C38: Allied | D38: 6 | E38: 6.5 | F38: 43 | G38: 9 | H38: 73 | I38: 1 | J38: 0 | K38: 0 | L38: 0 | M38: 3800 | N38: Tom | O38: None,None,None | P38: 5 | Q38: 681.7204301 | R38: William Tustin | S38: 681.7204301
A39: William Tustin | B39: Lutzow | C39: Allied | D39: 3 | E39: 3.5 | F39: 17 | G39: 6 | H39: 1 | I39: 0 | J39: 0 | K39: 0 | L39: 0 | M39: 320 | N39: Carl | O39: None,None,None | P39: 3.5 | Q39: 477.2043011 | R39: William Tustin | S39: 477.2043011

Sheet Nats Mon 2
I1: Winner: | J1: =IF(K2>K3, B2, IF(K3>K2, B3, "Tie")) -> Axis | L1: Battle Type | M1: Battle Location and Month (i.e. MD May) | N1: Nats | S1: Fleet
A2: Fleet 1 : | B2: Allied | D2: Fleet Units: | E2: 67.5 | F2: Fleet Weight: | G2: 120 | H2: Fleet Battle Damage: | I2: 18020 | J2: Fleet Score: | K2: 11100 | M2: Battle Day | N2: Mon | S2: Mini-Fleet
A3: Fleet 2 : | B3: Axis | D3: Fleet Units: | E3: 46.5 | F3: Fleet Weight: | G3: 79 | H3: Fleet Battle Damage: | I3: 12100 | J3: Fleet Score: | K3: 17620 | M3: Battle Number | N3: 2 | S3: Individual
A4: Captian | B4: Ship | C4: Fleet | D4: Class | E4: Units | F4: Above | G4: On | H4: Below | I4: Sinks | J4: Participate all Sorties | K4: Penalties Points | L4: 2nd Sortie Sink | M4: Damage Points | N4: Scored By | O4: Notes | P4: Weight Factor | Q4: Weight Points | R4: Captian | S4: Captain Points | T4: Indiv Points
A5: Randy Stiponovich | B5: Glorie | C5: Axis | D5: 2 | E5: 2.5 | F5: 7 | G5: 3 | H5: 4 | I5: 0 | J5: 1 | K5: 0 | L5: 0 | M5: 250 | N5: Rick | O5: None,None,None | P5: 6 | Q5: 1368.607595 | R5: Randy Stiponovich | S5: 1368.607595
A6: Robert Arena | B6: Arizona | C6: Allied | D6: 5 | E6: 5.5 | F6: 49 | G6: 0 | H6: 5 | I6: 0 | J6: 1 | K6: 0 | L6: 0 | M6: 640 | N6: Mark | O6: None ,None,None | P6: 9 | Q6: 907.5 | R6: Robert Arena | S6: 907.5
A7: Thomas Tanner | B7: Seydlitz | C7: Axis | D7: 4 | E7: 4.5 | F7: 11 | G7: 4 | H7: 14 | I7: 0 | J7: 1 | K7: 200 | L7: 0 | M7: 610 | N7: Rob | O7: Ram below palmer,None,None | P7: 8 | Q7: 1624.810127 | R7: Thomas Tanner | S7: 1624.810127
A8: Kas Gaigalas | B8: Washington | C8: Allied | D8: 6 | E8: 6 | F8: 33 | G8: 7 | H8: 14 | I8: 0 | J8: 1 | K8: 0 | L8: 0 | M8: 890 | N8: Craig | O8: None,None,None | P8: 10 | Q8: 1008.333333 | R8: Kas Gaigalas | S8: 1008.333333
A9: Bob Hoernemann | B9: Kongo | C9: Axis | D9: 4 | E9: 4.5 | F9: 49 | G9: 3 | H9: 22 | I9: 0 | J9: 1 | K9: 0 | L9: 0 | M9: 1210 | N9: Nate | O9: None,None,None | P9: 8 | Q9: 1824.810127 | R9: Bob Hoernemann | S9: 1824.810127
A10: Nathan Graham | B10: Gearing | C10: Allied | D10: 1 | E10: 1.5 | F10: 4 | G10: 1 | H10: 0 | I10: 0 | J10: 1 | K10: 0 | L10: 0 | M10: 60 | N10: Tom | O10: None,None,None | P10: 4 | Q10: 403.3333333 | R10: Nathan Graham | S10: 403.3333333
A11: William Tustin | B11: Jean Bart | C11: Allied | D11: 6 | E11: 6.5 | F11: 58 | G11: 4 | H11: 53 | I11: 0 | J11: 1 | K11: 0 | L11: 0 | M11: 2250 | N11: Tom | O11: None,None,None | P11: 10 | Q11: 1008.333333 | R11: William Tustin | S11: 1008.333333
A12: Craig Singer | B12: Nagato | C12: Axis | D12: 6 | E12: 6 | F12: 66 | G12: 8 | H12: 32 | I12: 0 | J12: 1 | K12: 0 | L12: 0 | M12: 1780 | N12: Rick | O12: None,None,None | P12: 10 | Q12: 2281.012658 | R12: Craig Singer | S12: 2281.012658
A13: Philip Pace | B13: Gearing | C13: Allied | D13: 1 | E13: 1.5 | F13: 2 | G13: 0 | H13: 1 | I13: 0 | J13: 1 | K13: 0 | L13: 0 | M13: 50 | N13: Carl | O13: None,None,None | P13: 4 | Q13: 403.3333333 | R13: Philip Pace | S13: 403.3333333
A14: Kevin Plumer | B14: Courbet | C14: Allied | D14: 4 | E14: 4.5 | F14: 43 | G14: 11 | H14: 54 | I14: 0 | J14: 1 | K14: 0 | L14: 0 | M14: 2270 | N14: Tom | O14: None,None,None | P14: 8 | Q14: 806.6666667 | R14: Kevin Plumer | S14: 806.6666667
A15: Chris Pearce | B15: Seydlitz | C15: Axis | D15: 4 | E15: 4.5 | F15: 12 | G15: 0 | H15: 20 | I15: 1 | J15: 0 | K15: 0 | L15: 0 | M15: 1520 | N15: Kevin | O15: None,None,None | P15: 4 | Q15: 912.4050633 | R15: Chris Pearce | S15: 912.4050633
A16: Carl Camurati | B16: Nelson | C16: Allied | D16: 6 | E16: 6 | F16: 107 | G16: 12 | H16: 39 | I16: 1 | J16: 1 | K16: 0 | L16: 1 | M16: 3480 | N16: Randy | O16: None,None,None | P16: 10 | Q16: 1008.333333 | R16: Carl Camurati | S16: 808.3333333
A17: Lou Meszaros | B17: Courbet | C17: Allied | D17: 4 | E17: 4.5 | F17: 9 | G17: 2 | H17: 8 | I17: 0 | J17: 1 | K17: 0 | L17: 0 | M17: 370 | N17: Brandon | O17: None,None,None | P17: 8 | Q17: 806.6666667 | R17: Lou Meszaros | S17: 806.6666667
A18: Richard Whitsell | B18: Jamaica | C18: Allied | D18: 2 | E18: 2.5 | F18: 14 | G18: 2 | H18: 3 | I18: 0 | J18: 1 | K18: 0 | L18: 0 | M18: 270 | N18: Tyler | O18: None,None,None | P18: 6 | Q18: 605 | R18: Richard Whitsell | S18: 605
A19: Steve Andrews | B19: Courbet | C19: Allied | D19: 4 | E19: 4.5 | F19: 22 | G19: 6 | H19: 21 | I19: 0 | J19: 1 | K19: 0 | L19: 0 | M19: 970 | N19: Charlie | O19: None,None,None | P19: 8 | Q19: 806.6666667 | R19: Steve Andrews | S19: 806.6666667
A20: Brian Lamb | B20: Lutzow | C20: Axis | D20: 3 | E20: 3.5 | F20: 12 | G20: 0 | H20: 1 | I20: 0 | J20: 1 | K20: 200 | L20: 0 | M20: 150 | N20: Kevin | O20: Ram below Kas,None,None | P20: 7 | Q20: 1396.708861 | R20: Brian Lamb | S20: 1396.708861
A21: Charley Stephens | B21: Seydlitz | C21: Axis | D21: 4 | E21: 4.5 | F21: 32 | G21: 11 | H21: 49 | I21: 0 | J21: 1 | K21: 0 | L21: 0 | M21: 2010 | N21: Kevin | O21: None,None,None | P21: 8 | Q21: 1824.810127 | R21: Charley Stephens | S21: 1824.810127
A22: Mark Lide | B22: Nagato | C22: Axis | D22: 6 | E22: 6 | F22: 33 | G22: 4 | H22: 19 | I22: 0 | J22: 1 | K22: 0 | L22: 0 | M22: 980 | N22: Jeff | O22: None,None,None | P22: 10 | Q22: 2281.012658 | R22: Mark Lide | S22: 2281.012658
A23: Jeff Lide | B23: Rodney | C23: Allied | D23: 6 | E23: 6 | F23: 65 | G23: 13 | H23: 21 | I23: 0 | J23: 1 | K23: 1000 | L23: 0 | M23: 1540 | N23: Tyler | O23: Withdraw,None,None | P23: 10 | Q23: 8.333333333 | R23: Jeff Lide | S23: 8.333333333
A24: Andy Terpstra | B24: Kongo | C24: Axis | D24: 4 | E24: 4.5 | F24: 46 | G24: 4 | H24: 52 | I24: 0 | J24: 1 | K24: 0 | L24: 0 | M24: 2100 | N24: Kevin | O24: None,None,None | P24: 8 | Q24: 1824.810127 | R24: Andy Terpstra | S24: 1824.810127
A25: Isaac McKinzie | B25: Radetzky | C25: Allied | D25: 3 | E25: 3.5 | F25: 4 | G25: 2 | H25: 4 | I25: 0 | J25: 1 | K25: 0 | L25: 0 | M25: 200 | N25: Charley | O25: None,None,None | P25: 7 | Q25: 705.8333333 | R25: Isaac McKinzie | S25: 705.8333333
A26: Marty Hayes | B26: South Carolina | C26: Allied | D26: 4 | E26: 4 | F26: 21 | G26: 2 | H26: 16 | I26: 1 | J26: 1 | K26: 0 | L26: 1 | M26: 1530 | N26: Steve | O26: None,None,None | P26: 8 | Q26: 806.6666667 | R26: Marty Hayes | S26: 606.6666667
A27: Robert Stalnaker | B27: Revenge | C27: Allied | D27: 5 | E27: 5.5 | F27: 41 | G27: 9 | H27: 20 | I27: 0 | J27: 1 | K27: 0 | L27: 0 | M27: 1190 | N27: Craig | O27: None,None,None | P27: 9 | Q27: 907.5 | R27: Robert Stalnaker | S27: 907.5
A28: Tyler Helland | B28: Nagato | C28: Axis | D28: 6 | E28: 6 | F28: 61 | G28: 8 | H28: 24 | I28: 0 | J28: 1 | K28: 0 | L28: 0 | M28: 1490 | N28: Tom | O28: None,None,None | P28: 10 | Q28: 2281.012658 | R28: Tyler Helland | S28: 2281.012658
A29: Tom Palmer | B29: Warspite | C29: Allied | D29: 5 | E29: 5.5 | F29: 83 | G29: 11 | H29: 42 | I29: 0 | J29: 1 | K29: 0 | L29: 0 | M29: 2310 | N29: Andy | O29: None,None,None | P29: 9 | Q29: 907.5 | R29: Tom Palmer | S29: 907.5

Sheet Nats Mon 1
I1: Winner: | J1: =IF(K2>K3, B2, IF(K3>K2, B3, "Tie")) -> Axis | L1: Battle Type | M1: Battle Location and Month (i.e. MD May) | N1: Nats | S1: Fleet
A2: Fleet 1 : | B2: Allied | D2: Fleet Units: | E2: 65.5 | F2: Fleet Weight: | G2: 112 | H2: Fleet Battle Damage: | I2: 22910 | J2: Fleet Score: | K2: 10760 | M2: Battle Day | N2: Mon | S2: Mini-Fleet
A3: Fleet 2 : | B3: Axis | D3: Fleet Units: | E3: 59.5 | F3: Fleet Weight: | G3: 103 | H3: Fleet Battle Damage: | I3: 11960 | J3: Fleet Score: | K3: 21710 | M3: Battle Number | N3: 1 | S3: Individual
A4: Captian | B4: Ship | C4: Fleet | D4: Class | E4: Units | F4: Above | G4: On | H4: Below | I4: Sinks | J4: Participate all Sorties | K4: Penalties Points | L4: 2nd Sortie Sink | M4: Damage Points | N4: Scored By | O4: Notes | P4: Weight Factor | Q4: Weight Points | R4: Captian | S4: Captain Points | T4: Indiv Points
A5: Mark Kuntz | B5: Nassau | C5: Axis | D5: 4 | E5: 4 | F5: 2 | G5: 3 | H5: 3 | I5: 0 | J5: 0 | K5: 800 | L5: 0 | M5: 170 | N5: Nate | O5: Withdraw,None,None | P5: 4 | Q5: 89.70873786 | R5: Mark Kuntz | S5: 89.70873786
A6: Brandon Smith | B6: Caio Duilio | C6: Axis | D6: 4 | E6: 4.5 | F6: 25 | G6: 4 | H6: 3 | I6: 0 | J6: 1 | K6: 0 | L6: 0 | M6: 420 | N6: Lou | O6: None,None,None | P6: 8 | Q6: 1779.417476 | R6: Brandon Smith | S6: 1779.417476
A7: Craig Singer | B7: Nagato | C7: Axis | D7: 6 | E7: 6 | F7: 19 | G7: 3 | H7: 12 | I7: 0 | J7: 1 | K7: 200 | L7: 0 | M7: 610 | N7: Rick | O7: Ram Below Kevin,None,None | P7: 10 | Q7: 2024.271845 | R7: Craig Singer | S7: 2024.271845
A8: Randy Stiponovich | B8: Glorie | C8: Axis | D8: 2 | E8: 2.5 | F8: 12 | G8: 3 | H8: 5 | I8: 0 | J8: 1 | K8: 0 | L8: 0 | M8: 330 | N8: Rick | O8: None,None,None | P8: 6 | Q8: 1334.563107 | R8: Randy Stiponovich | S8: 1334.563107
A9: David Haynes | B9: Kongo | C9: Axis | D9: 4 | E9: 4.5 | F9: 41 | G9: 2 | H9: 0 | I9: 1 | J9: 1 | K9: 0 | L9: 1 | M9: 1250 | N9: Rob | O9: None,None,None | P9: 8 | Q9: 1779.417476 | R9: David Haynes | S9: 1579.417476
A10: Gerald Roberts | B10: Kongo | C10: Axis | D10: 4 | E10: 4.5 | F10: 74 | G10: 7 | H10: 49 | I10: 0 | J10: 1 | K10: 0 | L10: 0 | M10: 2350 | N10: Rob | O10: None,None,None | P10: 8 | Q10: 1779.417476 | R10: Gerald Roberts | S10: 1779.417476
A11: Mark Lide | B11: Nagato | C11: Axis | D11: 6 | E11: 6 | F11: 11 | G11: 10 | H11: 11 | I11: 0 | J11: 1 | K11: 0 | L11: 0 | M11: 640 | N11: Jeff | O11: None,None,None | P11: 10 | Q11: 2224.271845 | R11: Mark Lide | S11: 2224.271845
A12: Brian Lamb | B12: Lutzow | C12: Axis | D12: 3 | E12: 3.5 | F12: 16 | G12: 1 | H12: 1 | I12: 0 | J12: 1 | K12: 0 | L12: 0 | M12: 210 | N12: Kevin | O12: None,None,None | P12: 7 | Q12: 1556.990291 | R12: Brian Lamb | S12: 1556.990291
A13: Chris Pearce | B13: Seydlitz | C13: Axis | D13: 4 | E13: 4.5 | F13: 46 | G13: 14 | H13: 32 | I13: 0 | J13: 1 | K13: 0 | L13: 0 | M13: 1700 | N13: Kevin | O13: None,None,None | P13: 8 | Q13: 1779.417476 | R13: Chris Pearce | S13: 1779.417476
A14: Tyler Helland | B14: Nagato | C14: Axis | D14: 6 | E14: 6 | F14: 35 | G14: 7 | H14: 22 | I14: 0 | J14: 1 | K14: 0 | L14: 0 | M14: 1150 | N14: Kevin | O14: None,None,None | P14: 10 | Q14: 2224.271845 | R14: Tyler Helland | S14: 2224.271845
A15: Andy Terpstra | B15: Kongo | C15: Axis | D15: 4 | E15: 4.5 | F15: 8 | G15: 1 | H15: 1 | I15: 0 | J15: 1 | K15: 0 | L15: 0 | M15: 130 | N15: Kevin | O15: None,None,None | P15: 8 | Q15: 1779.417476 | R15: Andy Terpstra | S15: 1779.417476
A16: Bob Hoernemann | B16: Kongo | C16: Axis | D16: 4 | E16: 4.5 | F16: 29 | G16: 2 | H16: 19 | I16: 0 | J16: 1 | K16: 200 | L16: 0 | M16: 900 | N16: Kevin | O16: Ram Below Kevin,None,None | P16: 8 | Q16: 1579.417476 | R16: Bob Hoernemann | S16: 1579.417476
A17: Charley Stephens | B17: Seydlitz | C17: Axis | D17: 4 | E17: 4.5 | F17: 28 | G17: 13 | H17: 52 | I17: 0 | J17: 1 | K17: 0 | L17: 0 | M17: 2100 | N17: Steve | O17: None,None,None | P17: 8 | Q17: 1779.417476 | R17: Charley Stephens | S17: 1779.417476
A18: Lou Meszaros | B18: Courbet | C18: Allied | D18: 4 | E18: 4.5 | F18: 10 | G18: 3 | H18: 8 | I18: 0 | J18: 1 | K18: 0 | L18: 0 | M18: 400 | N18: Brandon | O18: None,None,None | P18: 8 | Q18: 854.2857143 | R18: Lou Meszaros | S18: 854.2857143
A19: Robert Stalnaker | B19: Revenge | C19: Allied | D19: 5 | E19: 5.5 | F19: 51 | G19: 6 | H19: 23 | I19: 1 | J19: 1 | K19: 0 | L19: 1 | M19: 2220 | N19: Brandon | O19: None,None,None | P19: 9 | Q19: 961.0714286 | R19: Robert Stalnaker | S19: 761.0714286
A20: Philip Pace | B20: Gearing | C20: Allied | D20: 1 | E20: 1.5 | F20: 8 | G20: 0 | H20: 0 | I20: 0 | J20: 1 | K20: 0 | L20: 0 | M20: 80 | N20: Carl B | O20: None,None,None | P20: 4 | Q20: 427.1428571 | R20: Philip Pace | S20: 427.1428571
A21: Nathan Graham | B21: Gearing | C21: Allied | D21: 1 | E21: 1.5 | F21: 1 | G21: 0 | H21: 0 | I21: 1 | J21: 1 | K21: 0 | L21: 1 | M21: 410 | N21: Mark | O21: None,None,None | P21: 4 | Q21: 427.1428571 | R21: Nathan Graham | S21: 227.1428571
A22: John Jones | B22: Gearing | C22: Allied | D22: 1 | E22: 1.5 | F22: 1 | G22: 0 | H22: 0 | I22: 0 | J22: 1 | K22: 0 | L22: 0 | M22: 10 | N22: Carl | O22: None,None,None | P22: 4 | Q22: 427.1428571 | R22: John Jones | S22: 427.1428571
A23: Tom Palmer | B23: Warspite | C23: Allied | D23: 5 | E23: 5.5 | F23: 74 | G23: 16 | H23: 39 | I23: 1 | J23: 1 | K23: 0 | L23: 1 | M23: 3130 | N23: Tyler | O23: None,None,None | P23: 9 | Q23: 961.0714286 | R23: Tom Palmer | S23: 761.0714286
A24: Kevin Plumer | B24: Courbet | C24: Allied | D24: 4 | E24: 4.5 | F24: 70 | G24: 6 | H24: 60 | I24: 0 | J24: 1 | K24: 0 | L24: 0 | M24: 2620 | N24: Andy | O24: None,None,None | P24: 8 | Q24: 854.2857143 | R24: Kevin Plumer | S24: 854.2857143
A25: Richard Whitsell | B25: Jamaica | C25: Allied | D25: 2 | E25: 2.5 | F25: 16 | G25: 3 | H25: 2 | I25: 0 | J25: 1 | K25: 0 | L25: 0 | M25: 280 | N25: Craig | O25: None,None,None | P25: 6 | Q25: 640.7142857 | R25: Richard Whitsell | S25: 640.7142857
A26: Steve Andrews | B26: Courbet | C26: Allied | D26: 4 | E26: 4.5 | F26: 29 | G26: 9 | H26: 24 | I26: 1 | J26: 1 | K26: 0 | L26: 1 | M26: 1990 | N26: Mark L | O26: None,None,None | P26: 8 | Q26: 854.2857143 | R26: Steve Andrews | S26: 654.2857143
A27: Carl Camurati | B27: Nelson | C27: Allied | D27: 6 | E27: 6 | F27: 74 | G27: 9 | H27: 15 | I27: 0 | J27: 0 | K27: 1000 | L27: 0 | M27: 1370 | N27: Andy | O27: Withdraw,None,None | P27: 5 | Q27: -466.0714286 | R27: Carl Camurati | S27: -466.0714286
A28: Kas Gaigalas | B28: Washington | C28: Allied | D28: 6 | E28: 6 | F28: 64 | G28: 20 | H28: 26 | I28: 0 | J28: 1 | K28: 0 | L28: 0 | M28: 1820 | N28: Craig | O28: None,None,None | P28: 10 | Q28: 1067.857143 | R28: Kas Gaigalas | S28: 1067.857143
A29: William Tustin | B29: Jean Bart | C29: Allied | D29: 6 | E29: 6.5 | F29: 53 | G29: 8 | H29: 92 | I29: 1 | J29: 1 | K29: 0 | L29: 1 | M29: 4450 | N29: Brian Lamb | O29: None,None,None | P29: 10 | Q29: 1067.857143 | R29: William Tustin | S29: 867.8571429
A30: Marty Hayes | B30: South Carolina | C30: Allied | D30: 4 | E30: 4 | F30: 27 | G30: 2 | H30: 5 | I30: 0 | J30: 1 | K30: 0 | L30: 0 | M30: 460 | N30: Craig | O30: None,None,None | P30: 8 | Q30: 854.2857143 | R30: Marty Hayes | S30: 854.2857143
A31: Jeff Lide | B31: Rodney | C31: Allied | D31: 6 | E31: 6 | F31: 78 | G31: 13 | H31: 36 | I31: 1 | J31: 1 | K31: 0 | L31: 1 | M31: 3120 | N31: Tyler | O31: None,None,None | P31: 10 | Q31: 1067.857143 | R31: Jeff Lide | S31: 867.8571429
A32: Robert Arena | B32: Arizona | C32: Allied | D32: 5 | E32: 5.5 | F32: 31 | G32: 0 | H32: 8 | I32: 0 | J32: 1 | K32: 200 | L32: 0 | M32: 550 | N32: Craig | O32: Ram below ,None,None | P32: 9 | Q32: 761.0714286 | R32: Robert Arena | S32: 761.0714286

Sheet Composite
A1: Composite | D1: Differential
A2: Mon AM | B2: 21710 | C2: 10950 | D2: =B2-C2 -> 10760 | E2: Axis
A3: Mon PM | B3: 17620 | C3: 11100 | D3: =B3-C3 -> 6520 | E3: Axis
A4: Tues AM | B4: 20620 | C4: 18770 | D4: 1850 | E4: Axis
A5: Tues Camp | B5: 4850 | C5: 14550 | D5: -9700 | E5: Alies
A6: Wed Night | B6: 5030 | C6: 2800 | D6: 2230 | E6: Axis
A7: Thurs AM | B7: 19390 | C7: 22720 | D7: -3330 | E7: Alies
A8: Thurs Camp | B8: 5750 | C8: 15700 | D8: -9950 | E8: Alies
A9: Fri | B9: 20800 | C9: 14840 | D9: 5960 | E9: Axis
B10: =SUM(B2:B9) -> 115770 | C10: =SUM(C2:C9) -> 111430 | D10: 4340 | E10: Axis
C12: =B10-C10 -> 4340 | E12: Axis
